Cogmind - Beta 16 @@@ ROGUE MODE // 2025.11.12 @ 21:46:15 Player: puppuppit Result: Destroyed by P-80 Master with Gamma Rifle Performance ------------- Evolutions (7) 3500 Regions Visited (33) 6600 Robots Destroyed (582) 2910 Value Destroyed (23077) 23077 Prototype IDs (220) 4400 Alien Tech Used (2) 400 Bonus (23598) 23598 TOTAL SCORE: 64485 Bonus ------- Triggered High Security 500 High Alert Combat Kills 4860 Follower Combat Kills 5129 Met Data Miner 300 Used Data Conduit 3000 Met Zhirov 300 Met Warlord at Base 500 MAIN.C Attacked Warlord 500 Warlord Defense Kills 6660 Built Enhanced Grunts 300 Met R17 at Cetus 500 Met R17 at Research 2000 Pursued by Intercept 3000 Friendly Fire -3951 Cogmind --------- Core Integrity 0/1300 Matter 292/600 Energy 378/380 System Corruption 25% Temperature Cool (39) Movement Flying (37) Location -3/Armory Parts ------- > --- POWER (2) -------- Light Quantum Reactor Light Quantum Reactor > --- PROPULSION (7) --- Field Propulsion Array Impulse Thruster Array Impulse Thruster Array > --- UTILITY (9) ------ Small Battery Improved Matter Compressor Advanced Terrain Scan Processor Advanced Terrain Scan Processor Experimental Core Analyzer Advanced Cloaking Device Advanced Cloaking Device Hacking Suite System Mapper > --- WEAPON (3) ------- Heavy Phase Cannon > --- INVENTORY (5) ---- Vortex Chain Reactor Linear Accelerator Linear Accelerator Peak State ------------ > --- POWER ------------ Micro Antimatter Reactor Graviton Reactor > --- PROPULSION ------- Combat Gravmag System Improved Antigrav System Improved Antigrav System Improved Antigrav System Improved Linear Gravjet Cooled Antigrav System Combat Linear Gravjet > --- UTILITY ---------- Advanced Cooling System Large Storage Unit Experimental Targeting Computer Weapon Mount Experimental Core Analyzer Improved Armor Integrity Analyzer Advanced Hacking Suite Advanced Hacking Suite Makeshift System Shield > --- WEAPON ----------- Hardcell Cannon Heavy Gauss Cannon Hypervelocity Mass Driver > --- INVENTORY -------- Vortex Chain Reactor Antigrav System Combat Gravmag System Improved Antigrav System Improved Antigrav System Matter Filter Advanced Weapon Cycler Experimental Focal Shield Advanced Remote Shield System Mapper Hardcell Cannon Hypervelocity Mass Driver Linear Accelerator Micro-nuke Launcher [Rating: 152] Favorites ----------- Power Enhanced Nuclear Core Engine Ion Engine Power Core Enhanced Nuclear Core Reactor Quantum Reactor Propulsion Light Treads Treads Light Treads Leg Enhanced Armored Leg Wheel Wheel Hover Unit Combat Gravmag System Flight Unit Cesium-ion Thruster Utility Hacking Suite Device Weapon Mount Storage Large Storage Unit Processor Advanced Targeting Computer Hackware Hacking Suite Protection Layered Light Armor Plating Weapon Light Cannon Energy Gun Phase Gun Energy Cannon Enhanced Nova Cannon Ballistic Gun KE Penetrator Ballistic Cannon Light Cannon Launcher Rocket Launcher Special Weapon Improved Plasma Cutter Impact Weapon Powered Hammer Slashing Weapon Axe Build | -11 -10 -10 -10 -9 -8 -7 -7 -7 -7 -7 -7 -6 -6 -6 -6 -6 -6 -5 -5 -5 -5 -5 -5 -4 -4 -4 -4 -4 -4 -4 -3 -3 -3 ------- Run | Yrd Mat Min Exi Min Mat Fac Was Fac Low Low Dat Pro Fac Ext Cet Arc Hub Fac Was Fac Upp Upp Zhi Pro Fac Was Fac Upp Upp War Pro Res Arm Slots Evolved 14 | . . . . . 4 2 . . . . . . 2 . . . . 2 . . . . . . 2 . . . . . . 2 . Power 1 | . . . . . . . . . . . . . . . . . . . . . . . . . 1 . . . . . . . . Propulsion 5 | . . . . . 1 1 . . . . . . 1 . . . . 1 . . . . . . . . . . . . . 1 . Utility 7 | . . . . . 2 1 . . . . . . 1 . . . . 1 . . . . . . 1 . . . . . . 1 . Weapon 1 | . . . . . 1 . . . . . . . . . . . . . . . . . . . . . . . . . . . . Parts Attached 467 | 9 9 . 1 6 30 26 2 23 2 3 1 2 33 21 7 9 25 38 13 29 5 10 5 4 32 2 10 2 6 30 4 56 12 Power 46 | 1 1 . . 1 2 1 . 2 1 . . . 3 2 2 1 2 1 1 4 . 2 1 . 3 . 1 . . 3 2 7 2 Engine 16 | 1 1 . . 1 1 . . 2 . . . . 2 2 . . 1 . 1 3 . 1 . . . . . . . . . . . Core 9 | . . . . . 1 1 . . 1 . . . 1 . . . 1 1 . 1 . 1 . . 1 . . . . . . . . Reactor 21 | . . . . . . . . . . . . . . . 2 1 . . . . . . 1 . 2 . 1 . . 3 2 7 2 Propulsion 141 | 3 . . . 1 12 11 . 8 . 1 . . 7 6 . 1 17 12 2 13 . 3 2 2 7 . 3 1 . 8 1 16 4 Treads 25 | 2 . . . 1 11 3 . . . . . . . 2 . . . 1 2 . . 3 . . . . . . . . . . . Leg 24 | . . . . . . 1 . . . . . . . . . . 12 11 . . . . . . . . . . . . . . . Wheel 1 | 1 . . . . . . . . . . . . . . . . . . . . . . . . . . . . . . . . . Hover 81 | . . . . . . 7 . 7 . 1 . . 7 4 . 1 5 . . 12 . . 2 2 6 . 3 1 . 8 1 12 2 Flight 10 | . . . . . 1 . . 1 . . . . . . . . . . . 1 . . . . 1 . . . . . . 4 2 Utility 163 | 3 2 . 1 2 12 5 1 10 . 1 1 1 14 8 3 6 3 13 6 10 3 2 1 . 11 1 3 1 3 11 . 20 5 Device 59 | 2 . . . . 1 1 1 2 . . . . 6 3 1 3 . 7 5 4 1 . . . 2 . 1 1 . 7 . 8 3 Storage 15 | 1 1 . . . 1 . . 2 . . . 1 . 1 . . 2 1 . . . 1 . . . . . . . . . 4 . Processor 32 | . . . . . . 2 . 2 . . 1 . 1 3 1 . . 2 . 1 1 . . . 6 1 1 . 2 3 . 3 2 Hackware 27 | . . . . . 5 1 . 2 . . . . 4 1 . 2 1 2 . 3 . . . . 1 . . . . . . 5 . Protection 30 | . 1 . 1 2 5 1 . 2 . 1 . . 3 . 1 1 . 1 1 2 1 1 1 . 2 . 1 . 1 1 . . . Artifact . | . . . . . . . . . . . . . . . . . . . . . . . . . . . . . . . . . . Weapon 117 | 2 6 . . 2 4 9 1 3 1 1 . 1 9 5 2 1 3 12 4 2 2 3 1 2 11 1 3 . 3 8 1 13 1 Energy Gun 4 | 1 . . . . . . . . . . . . . 1 . . . . . . 1 . . . 1 . . . . . . . . Energy Cannon 8 | . . . . . . . . . . . . . . . . . . . . . . . . . 3 . 1 . 1 2 . . 1 Ballistic Gun 26 | 1 2 . . . . . 1 . . . . . . . 2 1 1 11 . . . . . 2 1 . 1 . 1 . . 2 . Ballistic Cannon 60 | . 2 . . 1 3 8 . 3 1 . . . 8 4 . . 2 . 2 2 1 2 . . 4 . 1 . 1 6 1 8 . Launcher 13 | . 1 . . 1 1 1 . . . . . . 1 . . . . 1 2 . . . . . 2 1 . . . . . 2 . Special Weapon 3 | . 1 . . . . . . . . . . . . . . . . . . . . . 1 . . . . . . . . 1 . Impact Weapon 1 | . . . . . . . . . . . . 1 . . . . . . . . . . . . . . . . . . . . . Slashing Weapon 2 | . . . . . . . . . . 1 . . . . . . . . . . . 1 . . . . . . . . . . . Piercing Weapon . | . . . . . . . . . . . . . . . . . . . . . . . . . . . . . . . . . . Special Melee Weapon . | . . . . . . . . . . . . . . . . . . . . . . . . . . . . . . . . . . Unidentified Prototypes 15 | . . . . . 3 2 . 1 . . . . . . . . 1 1 1 . . . 2 . 1 . . . . 3 . . . Corrupted Parts 6 | . . . . . . . 1 . . . . . . 2 . . . . . . . 1 . . . . . . . 1 1 . . System Corruption 29 | . . . . . . . 10 . . . . . . 10 . . . . . . . 3 . . . . . . . 5 1 . . Parts Lost 157 | . 1 . . 2 . 5 7 1 . . 1 1 5 14 . . 13 10 . 13 2 3 . 5 23 . 5 . 2 2 . 40 2 Power 13 | . 1 . . . . . 1 . . . . . 1 1 . . 1 . . 1 1 . . . 2 . 1 . . 1 . 2 . Propulsion 55 | . . . . . . 3 2 . . . 1 . . 6 . . 8 1 . 6 . . . 3 5 . 1 . . 1 . 17 1 Utility 43 | . . . . 1 . . 2 1 . . . 1 4 3 . . 1 3 . 5 1 1 . . 6 . 1 . 2 . . 11 . Weapon 46 | . . . . 1 . 2 2 . . . . . . 4 . . 3 6 . 1 . 2 . 2 10 . 2 . . . . 10 1 Highest Loss Streak 30 | . 1 . . 2 . 3 6 1 . . 1 2 2 5 . . 5 4 . 5 2 2 . 5 10 . 4 . 1 1 . 30 1 To Critical Strikes 4 | . . . . . . . . . . . . . . . . . . . . . . . . . 3 . . . . . . 1 . Average Backups 12 | 2 12 15 15 14 14 14 7 8 9 8 8 8 8 8 8 8 8 14 14 14 14 14 14 12 13 15 14 12 14 13 14 14 3 Power . | . . . . . 1 1 . . . . . . . . . . . 1 . . . . . . . 2 2 1 1 1 1 1 . Propulsion 1 | . . 1 1 1 1 1 . 1 2 2 1 1 1 1 3 1 1 3 4 2 . 1 1 . 1 . 3 5 5 4 3 4 1 Utility 4 | 1 6 6 5 3 5 6 3 2 2 2 1 1 1 1 2 2 2 4 5 7 7 6 7 6 6 7 3 1 3 4 5 4 . Weapon 4 | . 6 8 8 7 6 4 3 4 4 4 5 6 4 4 3 4 3 5 4 3 6 5 4 3 4 5 4 3 4 3 5 4 1 Tool/Special . | . . . . . . . . . . . . . . . . . . . . . . . . . . . . . . . . . . Unused Backups 99 | . 8 . 1 1 5 1 10 9 . 1 . . 8 5 3 4 . 4 1 2 . 3 4 . 6 . 2 . 1 5 1 13 1 Power 13 | . . . . 1 2 1 1 3 . . . . 1 . . . . 1 . . . . . . 2 . . . . . . 1 . Propulsion 20 | . . . . . 1 . . 1 . 1 . . 2 4 2 1 . . . . . 2 3 . . . . . . . . 2 1 Utility 38 | . 4 . 1 . 2 . 5 3 . . . . 1 . 1 3 . 1 . 1 . . 1 . 2 . 2 . 1 4 1 5 . Weapon 27 | . 4 . . . . . 3 2 . . . . 4 1 . . . 2 1 1 . 1 . . 2 . . . . 1 . 5 . Tool/Special 1 | . . . . . . . 1 . . . . . . . . . . . . . . . . . . . . . . . . . . Average Slot Usage (%) 93 | . 99 100 73 100 98 99 36 97 100 100 100 96 89 91 92 92 93 99 96 94 70 82 84 94 92 97 97 93 93 95 89 93 68 Engine 2 | . 13 14 14 14 . . . 7 4 . . . 5 1 3 . . . . 2 1 3 1 . . . . . . 3 . . . Core 2 | . . . . . 8 7 2 . 2 7 7 7 . 4 . . . 1 4 2 . . . . 1 5 3 . . . . . . Reactor 1 | . . . . . . . . . . . . . . . 2 6 4 3 . . . . 3 5 4 5 5 5 5 5 5 7 3 Treads 8 | . 27 28 28 28 27 19 . . . . . . . . . . . . 5 2 . 5 3 . . . . . . . . . . Leg 2 | . . . . . . . . . . . . . . . . . 14 34 25 9 . . . . . . . . . . . . . Hover 16 | . . . . . . 10 10 27 30 30 30 30 23 25 26 26 14 . . 19 23 23 31 30 29 31 31 31 31 30 30 31 12 Device 6 | . 4 . . . 1 . . 10 15 12 7 7 12 9 5 10 4 11 16 7 3 4 6 9 8 5 7 11 10 12 10 9 7 Storage 7 | . 14 14 14 14 9 7 2 6 7 7 7 10 6 6 6 6 6 6 5 5 5 6 9 5 5 5 5 5 5 5 5 4 9 Processor 5 | . . . . . . 1 . 3 7 4 1 . . 6 13 12 6 8 . . 8 9 5 5 11 18 20 15 15 17 21 10 8 Hackware 12 | . . . . . 19 24 9 7 . . . . 15 15 10 6 17 7 17 25 11 11 11 11 12 10 7 5 5 5 5 14 9 Protection 4 | . 9 14 13 14 5 3 . 7 7 11 21 15 3 . 2 1 1 2 . . 6 3 3 6 2 . . 3 4 . . . . Ballistic Gun 3 | . 19 . . . . . 1 . . . . . . . 7 19 16 12 . . . . . 8 2 . 3 5 7 2 . . . Ballistic Cannon 14 | . 8 26 3 28 26 22 4 22 23 23 17 16 18 17 10 . 1 3 15 15 . 6 1 7 6 . 2 . . 8 10 12 2 Peak Build Rating 152 | 9 10 8 9 9 29 45 49 48 51 51 51 48 77 75 87 91 88 107 108 105 76 85 106 107 118 117 118 114 112 128 128 152 146 Average Rating 65 | 6 8 8 7 8 24 35 16 41 50 50 47 45 67 70 77 84 77 92 102 91 61 72 86 97 107 114 113 111 109 119 119 139 128 On Entrance 66 | . 9 8 8 9 8 26 40 17 48 51 47 48 46 69 71 87 88 79 97 103 71 61 80 106 96 113 117 90 111 109 119 128 94 Avg Prop Armor Cover (%) 8 | 7 . . . . . 2 . 2 . . . . 4 7 . . 4 5 6 6 13 13 20 . 4 . . . . . . 11 6 Naked Turns 209 | . . . . . . . 209 . . . . . . . . . . . . . . . . . . . . . . . . . . Heaviest Build 106 | 13 32 32 34 34 51 50 38 38 38 40 40 40 56 48 58 55 71 75 93 77 57 61 71 71 74 70 72 72 72 88 85 106 59 Greatest Support 144 | 40 40 40 40 40 60 82 36 38 38 40 42 42 55 55 55 55 88 144 116 88 50 56 72 74 84 73 75 73 73 95 85 103 74 Greatest Overweight (x) 11 | . 1 . . . . 1 2 1 . 1 1 1 1 1 1 . 11 . . 2 1 1 . 1 1 . . . . 1 1 1 . Average Overweight (x) . | . . . . . . . . . . . . . . . . . . . . . . . . . . . . . . . . . . Largest Inventory Capacity 20 | 8 15 15 15 15 15 15 15 10 10 10 10 10 10 10 10 10 15 15 15 15 15 15 15 15 15 15 15 15 15 15 15 20 5 Average Capacity 13 | 7 14 15 15 15 15 15 8 9 10 10 10 10 10 10 10 10 10 15 15 15 15 15 15 15 15 15 15 15 15 15 15 16 5 Most Carried 20 | 4 15 15 15 15 15 15 15 10 10 10 10 10 10 10 10 10 15 15 15 15 15 15 15 15 15 15 15 14 15 15 15 20 5 Average Carried 12 | 2 12 15 14 14 14 14 7 8 9 9 9 9 9 9 9 9 9 14 14 14 14 14 14 13 13 14 14 12 14 14 14 15 4 Final Capacity 15 | 8 15 15 15 15 15 15 5 10 10 10 10 10 10 10 10 10 15 15 15 15 15 15 15 15 15 15 15 15 15 15 15 5 5 Final Carried 15 | 4 15 15 15 15 15 15 5 10 10 10 8 10 10 10 10 10 15 15 15 15 15 15 14 15 15 15 15 13 15 15 15 5 4 Class Distribution -------------------- 25% | Hacker-Gunner 16% | Scavenger-Gunner 16% | Mutant 13% | Hacker-Tank 6% | Hacker-Mutant 4% | Gunner 4% | Skirmisher 3% | Scavenger-Mutant Dominant Class ---------------- Mutant | -10/Materials Mutant | -10/Mines Mutant | -10/Exiles Mutant | -9/Mines Hacker-Gunner | -8/Materials Hacker-Tank | -7/Factory Mutant | -7/Waste Skirmisher | -7/Factory Skirmisher | -7/Lower Caves Skirmisher | -7/Lower Caves Mutant | -7/Data Miner Mutant | -6/Proximity Caves Hacker-Gunner | -6/Factory Commander-Gunner | -6/Extension Scavenger-Gunner | -6/Cetus Scavenger-Gunner | -6/Archives Scavenger-Gunner | -6/Hub_04(d) Scavenger-Gunner | -5/Factory Hacker-Tank | -5/Waste Hacker-Gunner | -5/Factory Hacker-Mutant | -5/Upper Caves Scavenger-Mutant | -5/Upper Caves Hacker-Mutant | -5/Zhirov Hacker-Gunner | -4/Proximity Caves Hacker-Gunner | -4/Factory Hacker-Gunner | -4/Waste Hacker-Gunner | -4/Factory Gunner | -4/Upper Caves Gunner | -4/Upper Caves Scavenger-Gunner | -4/Warlord Scavenger-Gunner | -3/Proximity Caves Scavenger-Gunner | -3/Research Hacker-Mutant | -3/Armory Resources | -11 -10 -10 -10 -9 -8 -7 -7 -7 -7 -7 -7 -6 -6 -6 -6 -6 -6 -5 -5 -5 -5 -5 -5 -4 -4 -4 -4 -4 -4 -4 -3 -3 -3 ----------- Run | Yrd Mat Min Exi Min Mat Fac Was Fac Low Low Dat Pro Fac Ext Cet Arc Hub Fac Was Fac Upp Upp Zhi Pro Fac Was Fac Upp Upp War Pro Res Arm Matter Collected 28494 | 447 713 384 38 204 2298 1614 704 1048 105 131 . 101 2583 1411 445 440 2004 1751 408 1660 357 789 289 483 2044 . 81 302 279 2764 110 2466 41 Remotely 2930 | . . . . . . . . . . . . . 1562 371 . . . 244 408 345 . . . . . . . . . . . . . Salvage Created 24781 | 342 713 143 . 178 2148 1841 648 784 18 . . . 2434 1840 281 436 2230 2066 424 911 43 104 289 278 1934 . 119 142 542 2542 90 1250 11 Parts 1071 | 28 39 19 . 15 139 78 7 38 2 . . . 96 61 13 37 72 98 4 38 2 1 1 13 88 . 10 5 22 85 9 47 4 Haulers Intercepted 16 | . 1 . . . 5 1 . . . . . . 1 1 . . 2 3 . 1 . . . . . . . . . . . 1 . Recyclers Shooed 20 | . 1 1 . . 2 2 . 2 . . . . 7 1 . . . 2 . . . . . . 1 . . . . . . 1 . Parts Field Recycled . | . . . . . . . . . . . . . . . . . . . . . . . . . . . . . . . . . . Retrieved Matter . | . . . . . . . . . . . . . . . . . . . . . . . . . . . . . . . . . . Parts Self-Destructed 61 | . . . . . . . . . 15 3 . . . . . . . . . . 2 3 . 13 . . . 6 13 . 6 . . Prevented 9 | . . . . . . . . . . . . 1 . . . . . . . . . 7 . 1 . . . . . . . . . Parts Restored . | . . . . . . . . . . . . . . . . . . . . . . . . . . . . . . . . . . Kills | -11 -10 -10 -10 -9 -8 -7 -7 -7 -7 -7 -7 -6 -6 -6 -6 -6 -6 -5 -5 -5 -5 -5 -5 -4 -4 -4 -4 -4 -4 -4 -3 -3 -3 ------- Run | Yrd Mat Min Exi Min Mat Fac Was Fac Low Low Dat Pro Fac Ext Cet Arc Hub Fac Was Fac Upp Upp Zhi Pro Fac Was Fac Upp Upp War Pro Res Arm Combat Hostiles Destroyed 373 | . 11 10 . 8 52 28 3 6 1 . . . 20 28 2 2 22 35 . 15 2 3 . 9 30 . 5 2 7 47 2 21 2 Guns 59 | . 5 . . . . . 1 . . . . . . 1 . 1 16 24 . . . . . 2 4 . . . 4 1 . . . Cannons 229 | . 4 5 . 3 34 21 . 6 1 . . . 18 15 2 1 1 10 . 14 2 3 . 6 15 . . 2 2 43 2 17 2 AOE 81 | . 2 5 . 5 18 7 2 . . . . . 2 12 . . 5 1 . 1 . . . . 9 . 5 . 1 2 . 4 . Classes Destroyed 28 | 3 5 2 . 1 5 2 1 . . . . . . 1 . . 1 1 . . . . . 1 1 . . . 1 3 . . . Worker 39 | 2 . 4 . . 5 3 . 3 . . . . 8 . . . 8 . . 2 . . . . 1 . 3 . . . . . . Builder 22 | . 1 1 . . 4 1 . . . . . . 9 2 . . 1 . . 1 . . . . 2 . . . . . . . . Tunneler 14 | 8 . 1 . 1 . . . . . . . . 1 . . . 1 1 . . . . . . 1 . . . . . . . . Hauler 16 | . 1 . . . 5 1 . . . . . . 1 1 . . 2 3 . 1 . . . . . . . . . . . 1 . Recycler 60 | 1 4 . . . 4 14 . 6 . . . . 13 4 . . 7 1 . 2 . . . . 2 . . . . . . 2 . Minesweeper 2 | . . . . . . . . . . . . . . . . . . . . . . . . 1 . . . . 1 . . . . Mechanic 4 | . . . . . 1 . . . . . . . . 1 . . . . . . . . . . . . . . . 2 . . . Operator 20 | . 1 . . . 3 . . . . . . . 3 1 . 9 1 . . 1 . . . . 1 . . . . . . . . Watcher 20 | . . . . . 5 2 . . . . . . 4 1 1 . 1 2 . . . . . . 1 . 1 . . . . 2 . Swarmer 64 | . 3 3 . 4 10 4 . 1 1 . . . . 7 . . 3 7 . . 2 . . 6 4 . 5 . . 1 . 3 . Cutter 2 | . . . . . . . . . . . . . . . . . . . . . . . . . 2 . . . . . . . . Saboteur 3 | . . . . . . . . . . . . . . . . . . . . . . . . . . . . . . 1 . . 2 Grunt 160 | . 8 . . 2 29 12 . 1 . . . . 10 12 . . 14 16 . 4 . 2 . 1 17 . . . 3 21 . 8 . Brawler 8 | . . . . . 1 . . 1 . . . . . . . . . 1 . . . . . . 1 . . . . 4 . . . Duelist 3 | . . . . . . . . . . . . . . . . . . 1 . . . . . . 1 . . . . 1 . . . Protector 5 | . . . . . . . . . . . . . . . . . 1 . . . . . . . . . . . . 4 . . . Sentry 36 | . . . . 2 9 5 . 1 . . . . 4 4 . 2 . 1 . 1 . 1 . . 2 . . 1 1 . . 2 . Demolisher 7 | . . 1 . . . . . . . . . . . 1 . . . . . 1 . . . . . . . . . 4 . . . Specialist 7 | . . . . . . 2 . . . . . . . . . . . . . 2 . . . . . . . . . 3 . . . Hunter 20 | . . . . . 2 1 . . . . . . . 2 . . 1 6 . . . . . 2 . . . 1 2 . . 3 . Programmer 26 | . . . . . . 4 . 2 . . . . 4 1 . . 1 2 . 4 . . . . 3 . . . . 3 2 . . Heavy 2 | . . . . . 1 . . . . . . . . . . . . 1 . . . . . . . . . . . . . . . Behemoth 2 | . . . . . . . . . . . . . . 1 . . . . . 1 . . . . . . . . . . . . . Compactor 3 | . . . . . . . 3 . . . . . . . . . . . . . . . . . . . . . . . . . . Cetus Guard 2 | . . . . . . . . . . . . . . . 2 . . . . . . . . . . . . . . . . . . Enhanced Grunt 3 | . . . . . . . . . . . . . . . 1 . 2 . . . . . . . . . . . . . . . . Tracker 6 | . . . . . . . . . . . . . 1 . . . 1 . . 1 . . . . . . . . . . . 3 . Combat Programmer 4 | . . . . . . . . . . . . . 1 . . . 1 . . 1 . . . . . . . . . . . 1 . Striker 3 | . . . . . . . . . . . . . . . . . . . . . . . . . . . . . . 2 . 1 . Executioner 3 | . . . . . . . . . . . . . . . . . . . . . . . . . . . . . . 3 . . . Decomposer 1 | . . . . . . . . . . . . . . . . . . . . . 1 . . . . . . . . . . . . Assembled 6 | . . 6 . . . . . . . . . . . . . . . . . . . . . . . . . . . . . . . Surgeon 2 | . . . . . . . . . . . . . . . . . . . . 1 . . . . . . . . . 1 . . . Wasp 3 | . . . . . . . . 1 . . . . . . . . . . . 2 . . . . . . . . . . . . . Thug 3 | . . . . . . . . . . . . . . 2 . . . . . . . . . . . . . . . 1 . . . Bouncer 2 | . . . . . . . . . . . . . . . . . . . . . . . . . . . . . . 2 . . . Martyr 1 | . . . . . . . . 1 . . . . . . . . . . . . . . . . . . . . . . . . . Guerrilla 1 | . . . . . . . . . . . . . . 1 . . . . . . . . . . . . . . . . . . . Wizard 1 | . . . . . . . . . . . . . . . . . . . . . . . . . . . . . . 1 . . . Mutant 2 | . . . . . . . . . . . . . . . . . . . . . . . . . . . . . 1 1 . . . Best Kill Streak 15 | 5 4 5 . 4 15 7 1 3 1 . . . 11 11 2 11 7 9 . 3 2 2 . 4 10 . 6 1 3 11 2 5 2 Combat Bots Only 10 | . 4 4 . 4 10 5 1 1 1 . . . 3 10 2 2 7 6 . 2 2 2 . 4 7 . 5 1 3 10 2 4 2 Max Kills in Single Turn 6 | 2 1 3 . 4 4 3 1 2 1 . . . 4 5 1 1 3 2 . 2 1 1 . 2 3 . 6 1 1 3 2 2 1 Gunslinging 1 | . . . . . . . . . . . . . . . . . 1 . . . . . . . . . . . . . . . . Exploded 5 | . 1 2 . 4 4 3 1 . . . . . 1 4 . . 2 1 . 1 . . . . 3 . 5 . 1 1 . 2 . Melee . | . . . . . . . . . . . . . . . . . . . . . . . . . . . . . . . . . . Uniques/NPCs Destroyed 1 | . . . . . . . . . . . . . . . 1 . . . . . . . . . . . . . . . . . . A7 (-6/Cetus) Combat | -11 -10 -10 -10 -9 -8 -7 -7 -7 -7 -7 -7 -6 -6 -6 -6 -6 -6 -5 -5 -5 -5 -5 -5 -4 -4 -4 -4 -4 -4 -4 -3 -3 -3 -------- Run | Yrd Mat Min Exi Min Mat Fac Was Fac Low Low Dat Pro Fac Ext Cet Arc Hub Fac Was Fac Upp Upp Zhi Pro Fac Was Fac Upp Upp War Pro Res Arm Hostile Shots Fired 2436 | . 41 29 . 37 135 161 10 75 . 3 3 13 263 241 11 8 95 184 . 131 39 46 . 77 205 . 68 4 27 48 4 408 70 Missed 857 | . 8 13 . 12 33 63 . 39 . 2 1 5 98 94 3 3 31 49 . 47 10 18 . 26 81 . 31 1 13 21 . 128 27 Hits 1579 | . 33 16 . 25 102 98 10 36 . 1 2 8 165 147 8 5 64 135 . 84 29 28 . 51 124 . 37 3 14 27 4 280 43 Melee 39 | . . 2 . . . . 10 1 . . . . . 1 . . . 1 . . . . . . 3 . . . . . . 20 1 Projectile 1540 | . 33 14 . 25 102 98 . 35 . 1 2 8 165 146 8 5 64 134 . 84 29 28 . 51 121 . 37 3 14 27 4 260 42 AOE 24 | . . 6 . . . . . . . . . . . 2 . . . . . 2 . . . . 2 . . . . 4 . 8 . Critical Strikes 73 | . 1 . . 1 3 1 5 . . 1 . . 4 5 . . 6 10 . 3 . 2 . 1 8 . 3 . 2 1 . 12 4 Actively Blocked 2 | . . . . 1 . . . . . . . . . . . . . . . . . . . . . . . . 1 . . . . Part Disruptions 5 | . . . . . . . . . . 1 . 2 . . . . . . . . . . . . . . . . 2 . . . . Actively Blocked 2 | . . . . . . . . . . . . 1 . . . . . . . . . . . . . . . . 1 . . . . Damage Taken 31265 | . 441 414 . 360 1655 1402 533 330 . 95 142 283 2159 2146 170 157 1579 3027 . 2234 305 575 . 753 2885 . 1067 73 271 841 99 6403 866 Core 4362 | . 107 119 . 10 154 158 393 50 . . . . 282 285 14 51 177 71 . 278 58 167 . 18 450 . 141 . 41 23 . 1065 250 Absorbed by Shields 569 | . . . . . . . . . . . . . . 284 52 . 5 . . 54 94 . . . 16 . . . . . . 64 . Redirected to Shielding 690 | . 21 40 . 16 29 . . 3 . . 63 50 7 . . . . . . 73 15 30 . 11 227 . 28 16 61 . . . . Ignored by Resistances 205 | . . . . . 50 53 . . . . . . 10 . . . . . . . . . . . . . . . . 92 . . . Regen/Repaired (Parts) 4053 | . 185 . . . 430 40 . . . 14 . . 546 131 . . . . 752 776 . . . . 394 . . . . 305 . 480 . Core Remaining (%) 39 | 100 . . . 5 72 . . . . . . 14 . . . . 4 . . . . . . 40 . . . . . . 38 . . Volleys Fired 1343 | 22 54 34 . 11 127 93 33 53 1 4 1 6 123 64 24 26 81 92 8 69 9 15 35 30 99 2 15 6 17 95 2 74 18 Largest 3 | 2 2 2 . 2 3 3 3 3 3 3 3 1 3 3 3 3 3 3 3 3 2 3 1 3 3 2 3 3 3 3 2 3 2 Hottest 275 | 60 60 60 . 60 93 103 106 113 120 120 120 40 165 191 184 118 123 99 157 157 80 158 20 128 208 163 236 275 270 150 127 188 144 Shots Fired 3191 | 42 96 57 . 21 357 260 69 140 3 11 3 6 285 151 63 72 210 272 24 174 16 35 35 70 199 3 26 18 44 245 6 157 21 Gun 741 | 42 61 . . . . . 13 . . . . . . 20 29 61 176 216 . . . . . 17 43 . 5 4 21 33 . . . Cannon 2303 | . 32 46 . 19 338 250 35 140 3 11 3 6 283 127 34 11 28 54 24 169 16 35 . 53 146 1 21 14 21 210 6 146 21 Launcher 112 | . 3 11 . 2 19 10 21 . . . . . 2 4 . . 6 2 . 5 . . . . 10 2 . . 2 2 . 11 . Special 35 | . . . . . . . . . . . . . . . . . . . . . . . 35 . . . . . . . . . . Kinetic 2872 | 22 93 46 . 19 338 250 48 140 3 11 3 6 283 127 59 72 204 270 24 169 16 35 . 70 155 . 9 4 22 208 6 146 14 Thermal 149 | . . . . . . . . . . . . . . 20 4 . . . . . . . 35 . 34 1 14 14 20 . . . 7 Explosive 98 | . 3 11 . 2 19 10 21 . . . . . 2 4 . . 6 2 . 5 . . . . 2 2 . . 2 2 . 5 . Electromagnetic 37 | 20 . . . . . . . . . . . . . . . . . . . . . . . . 8 . 3 . . . . 6 . Entropic 35 | . . . . . . . . . . . . . . . . . . . . . . . . . . . . . . 35 . . . Robot Hit Streak 47 | 7 8 6 . 7 18 12 9 5 2 3 1 . 10 10 7 13 17 43 11 21 3 10 12 8 31 19 23 15 24 47 8 23 6 Robot Miss Streak 8 | 2 3 8 . 1 6 5 3 5 . 3 2 . 6 4 4 5 3 2 1 5 2 2 1 4 2 . 1 1 2 5 . 3 1 Penetration Max 2 | . . . . . . . . . . . . . . 2 1 1 1 2 . 1 . . . 2 1 . 2 . . 2 . 1 . Secondary Targets 6 | . . . . . . . . . . . . . . . . . 2 4 . . . . . . . . . . . . . . . Max Gunslinging Chain 1 | . . . . . . . . . . . . . . . . . 1 1 . . . . . . . . . . . . . . . Shots Hit Robots 1941 | 26 57 25 . 14 194 157 40 59 1 5 2 . 153 93 35 42 129 224 18 94 9 23 30 35 123 3 14 10 32 172 4 110 8 Core Hits 1052 | 12 24 23 . 12 137 84 8 33 1 2 . . 75 66 12 21 84 92 3 49 3 5 11 17 96 1 11 4 16 86 2 60 2 Critical Kills 52 | . . . . . . . . . . . . . . 9 4 8 5 2 . . . 1 . 3 2 . . . 2 11 . 5 . Critical Parts Destroyed 63 | . . . . . . . . . . . . . . 5 5 3 10 2 . . . 1 . 3 5 . 3 1 2 15 . 8 . Critical Strikes 223 | . . 1 . . 9 7 . 3 . . 1 . 10 25 11 12 16 6 1 10 3 4 1 7 14 . 3 1 4 52 . 22 . Burn 1 | . . . . . . . . . . . . . . 1 . . . . . . . . . . . . . . . . . . . Destroy 127 | . . . . . . . . . . . . . . 17 11 12 16 4 . . . 3 . 6 8 . 3 1 4 29 . 13 . Blast 84 | . . 1 . . 9 7 . 3 . . 1 . 10 7 . . . 2 1 10 3 1 . 1 6 . . . . 13 . 9 . Sever 1 | . . . . . . . . . . . . . . . . . . . . . . . 1 . . . . . . . . . . Sunder 10 | . . . . . . . . . . . . . . . . . . . . . . . . . . . . . . 10 . . . Melee Attacks 18 | . . . . . . . . . . . 1 8 8 . . . . . . . . 1 . . . . . . . . . . . Impact 16 | . . . . . . . . . . . . 8 8 . . . . . . . . . . . . . . . . . . . . Slashing 2 | . . . . . . . . . . . 1 . . . . . . . . . . 1 . . . . . . . . . . . Piercing . | . . . . . . . . . . . . . . . . . . . . . . . . . . . . . . . . . . Sneak Attacks 4 | . . . . . . . . . . . 1 . 3 . . . . . . . . . . . . . . . . . . . . Combat Hostiles . | . . . . . . . . . . . . . . . . . . . . . . . . . . . . . . . . . . Follow-up Attacks . | . . . . . . . . . . . . . . . . . . . . . . . . . . . . . . . . . . Damage Inflicted 74473 | 367 905 980 . 480 5339 3758 2627 1564 29 140 97 . 6964 5122 1358 1218 6304 6095 708 4555 346 1003 655 912 5345 355 1342 385 1233 9308 293 4298 388 Guns 13541 | 367 476 . . . . . 242 . . . . . . 373 649 1097 3963 4170 . . . . . 208 1026 . 67 15 251 637 . . . Cannons 45151 | . 328 432 . 223 3262 3176 645 1564 29 140 23 . 5542 3114 709 121 724 1674 708 3827 346 1003 . 704 2798 45 438 370 758 8369 293 3398 388 Explosions 14794 | . 101 548 . 257 2077 582 1723 . . . . . 1184 1635 . . 1617 248 . 728 . . . . 1521 310 837 . 224 302 . 900 . Melee 312 | . . . . . . . . . . . 74 . 238 . . . . . . . . . . . . . . . . . . . . Ramming 20 | . . . . . . . 17 . . . . . . . . . . 3 . . . . . . . . . . . . . . . Kinetic 53569 | 170 804 432 . 223 3262 3176 887 1564 29 140 23 . 5542 3114 1283 1218 4687 5844 708 3827 346 1003 . 912 3265 . 145 15 264 6701 293 3398 294 Thermal 4182 | . . . . . . . . . . . . . 108 373 75 . . . . . . . 655 . 559 45 1061 370 745 . . 97 94 Explosive 12442 | . 101 548 . 257 1919 532 1723 . . . . . 1076 1635 . . 1617 248 . 728 . . . . 468 310 . . 224 302 . 754 . Electromagnetic 1643 | 197 . . . . 158 50 . . . . . . . . . . . . . . . . . . 1053 . 136 . . . . 49 . Impact 238 | . . . . . . . . . . . . . 238 . . . . . . . . . . . . . . . . . . . . Slashing 74 | . . . . . . . . . . . 74 . . . . . . . . . . . . . . . . . . . . . . Piercing . | . . . . . . . . . . . . . . . . . . . . . . . . . . . . . . . . . . Entropic 2305 | . . . . . . . . . . . . . . . . . . . . . . . . . . . . . . 2305 . . . Highest Corruption 64 | . 2 2 2 2 . 1 61 61 61 61 61 64 15 28 28 28 19 1 1 12 12 15 15 15 4 6 12 12 6 6 10 21 24 Average Corruption 15 | . 1 2 2 2 . 1 34 61 61 61 61 63 5 19 28 19 11 1 1 1 12 14 15 15 1 3 6 9 6 3 6 3 21 Corruption Purged 33 | . . . . . . 1 . . . . . . 1 . . 20 . . . 1 . . . . 4 . . 6 . . . . . Corruption Blocked . | . . . . . . . . . . . . . . . . . . . . . . . . . . . . . . . . . . Effects 660 | . 20 10 4 4 . 1 43 97 31 28 4 21 40 62 22 21 41 5 2 16 12 35 11 29 2 1 14 12 12 5 8 29 18 Message Errors 160 | . 6 3 1 . . . 12 18 8 8 . 3 11 16 6 5 8 1 1 3 4 13 2 3 . . 3 3 3 2 2 8 7 Matter Fused 116 | . 2 2 1 1 . . 7 14 8 5 1 2 5 13 3 4 8 . . 5 4 5 3 4 . . 2 2 5 2 . 7 1 Heat Flow Errors 62 | . 2 1 . . . 1 3 9 2 1 . 3 3 6 3 1 1 . . 1 1 10 1 4 . . 1 1 . 1 2 3 1 Energy Discharges 72 | . 3 1 . 2 . . 4 5 7 3 1 1 3 5 3 5 8 1 . 4 . 1 . 5 1 . 3 . 3 . 1 2 . Parts Rejected 9 | . . . . . . . 1 1 . . . . . 2 1 . 1 . . . . . . . . . 1 . . . . 1 1 Parts Fused 11 | . 1 . . . . . . 2 . 1 . . . 1 . 1 1 . . . . . . 2 . . . . . . . . 2 Data Loss (minor) 77 | . 3 2 2 . . . 2 13 3 4 1 3 4 5 1 . 2 . 1 3 1 5 2 7 1 1 2 4 . . . 5 . Data Loss (major) 34 | . 2 . . . . . 2 4 3 1 . 4 3 1 2 1 2 . . . 2 . 2 2 . . . . 1 . . 2 . Misfires 27 | . . 1 . . . . 1 3 . 1 . 1 2 3 2 . 3 3 . . . 1 . 1 . . 1 2 . . 2 . . Alerts 16 | . 1 . . 1 . . . 2 . 1 . 2 3 2 . . 2 . . . . . 1 . . . . . . . 1 . . Misdirections 32 | . . . . . . . 10 10 . 1 1 1 2 1 . . . . . . . . . . . . 1 . . . . 1 4 Weapon Failures 44 | . . . . . . . 1 16 . 2 . 1 4 7 1 4 5 . . . . . . 1 . . . . . . . . 2 Overload Shots . | . . . . . . . . . . . . . . . . . . . . . . . . . . . . . . . . . . Overflow Damage 2059 | . 5 22 . . 77 50 8 . . . . . 452 129 . . 176 64 . 180 4 27 3 21 48 . 188 . 29 360 33 94 89 Projectiles 1358 | . . 9 . . 37 35 . . . . . . 326 20 . . 57 64 . 97 4 27 3 21 44 . 32 . 29 360 33 71 89 Explosions 663 | . 5 13 . . 40 15 8 . . . . . 88 109 . . 119 . . 83 . . . . 4 . 156 . . . . 23 . Melee 38 | . . . . . . . . . . . . . 38 . . . . . . . . . . . . . . . . . . . . Knockbacks 255 | . 3 7 . 2 28 26 1 12 . . . . 46 18 1 . 5 10 . 27 5 4 . 3 16 . 4 . . 9 2 22 4 Impact 1 | . . . . . . . . . . . . . 1 . . . . . . . . . . . . . . . . . . . . Kinetic 240 | . 3 7 . 1 28 24 1 12 . . . . 43 15 1 . 5 10 . 25 5 4 . 3 15 . 4 . . 8 2 20 4 Secondary 14 | . . . . 1 . 2 . . . . . . 2 3 . . . . . 2 . . . . 1 . . . . 1 . 2 . Self-Inflicted Damage 350 | . 28 24 . 1 40 45 51 . . . . . 67 . . . 38 . . . . . . . 50 . . . . . . 6 . Shots 12 | . 1 1 . 1 1 1 2 . . . . . 1 . . . 1 . . . . . . . 2 . . . . . . 1 . Rammed 6 | . . . . . . . 6 . . . . . . . . . . . . . . . . . . . . . . . . . . Targets Rammed 7 | . . . . . . . 6 . . . . . . . . . . 1 . . . . . . . . . . . . . . . Kicked 1 | . . . . . . . . . . . . . . . . . . 1 . . . . . . . . . . . . . . . Crushed . | . . . . . . . . . . . . . . . . . . . . . . . . . . . . . . . . . . Highest Temperature 443 | . 264 151 . 33 336 396 215 266 215 316 . 249 287 247 266 130 306 25 168 443 101 432 191 223 306 120 181 298 315 304 187 158 197 Average Temperature 73 | . 88 43 . 10 70 66 43 91 84 170 . 107 40 71 103 39 81 12 67 105 47 148 107 93 75 34 59 104 87 117 70 34 56 Received Heat Transfer 4320 | . 228 20 . 144 603 360 . 63 . 322 . 18 303 469 9 18 238 460 . 36 . 189 . 54 456 . 45 9 120 42 . 87 27 Effects 14 | . . . . . . 3 . . . 2 . . . . . . . . . 1 . 2 . . 1 . . 1 . 4 . . . Shutdowns 3 | . . . . . . 1 . . . . . . . . . . . . . 1 . 1 . . . . . . . . . . . Energy Bleed 3 | . . . . . . 1 . . . . . . . . . . . . . . . . . . . . . 1 . 1 . . . Interference 6 | . . . . . . . . . . 2 . . . . . . . . . . . . . . 1 . . . . 3 . . . Short Circuit 1 | . . . . . . 1 . . . . . . . . . . . . . . . . . . . . . . . . . . . Damage (minor) 1 | . . . . . . . . . . . . . . . . . . . . . . 1 . . . . . . . . . . . Siege Activations . | . . . . . . . . . . . . . . . . . . . . . . . . . . . . . . . . . . Martial Activations . | . . . . . . . . . . . . . . . . . . . . . . . . . . . . . . . . . . Shielding Activations . | . . . . . . . . . . . . . . . . . . . . . . . . . . . . . . . . . . Robots Disrupted 1 | . . . . . 1 . . . . . . . . . . . . . . . . . . . . . . . . . . . . Combat Hostiles . | . . . . . . . . . . . . . . . . . . . . . . . . . . . . . . . . . . Robots Corrupted 4 | . . . . . . . . . . . . . 2 . . . . . . . . . . . 2 . . . . . . . . Combat Hostiles 1 | . . . . . . . . . . . . . . . . . . . . . . . . . 1 . . . . . . . . Parts Fried 15 | 1 . . . . . . . . . . . . 8 . . . . . . . . . . . 4 . 2 . . . . . . Impact Corruptions 6 | . . . . . . . . . . . . . 3 . . . . . . 1 . . . . . . . . . 2 . . . Robots Melted . | . . . . . . . . . . . . . . . . . . . . . . . . . . . . . . . . . . Combat Hostiles . | . . . . . . . . . . . . . . . . . . . . . . . . . . . . . . . . . . Parts Melted 10 | . . . . . . . . 1 . . . . 1 . . . . . . . . 2 . 2 2 . 1 . . 1 . . . Heat Transferred 4197 | . . . . . . . . . . . . . 50 629 111 . . . . . . . 1081 . 592 37 635 296 592 . . 100 74 Parts Sabotaged 5 | . . . . . . . . . . . . . . . . . . 3 . . . . . . . . . . . . . . 2 Parts Stolen . | . . . . . . . . . . . . . . . . . . . . . . . . . . . . . . . . . . Parts Stripped . | . . . . . . . . . . . . . . . . . . . . . . . . . . . . . . . . . . Power Chain Reactions 2 | . . . . . . . . . . . . . . . . . . . . . . . . . . . . . . . . 2 . Alert | -11 -10 -10 -10 -9 -8 -7 -7 -7 -7 -7 -7 -6 -6 -6 -6 -6 -6 -5 -5 -5 -5 -5 -5 -4 -4 -4 -4 -4 -4 -4 -3 -3 -3 ------- Run | Yrd Mat Min Exi Min Mat Fac Was Fac Low Low Dat Pro Fac Ext Cet Arc Hub Fac Was Fac Upp Upp Zhi Pro Fac Was Fac Upp Upp War Pro Res Arm Maximum Alert Level 5 | . . . . . 3 3 1 5 . . . . 3 5 4 3 4 4 2 5 . . . . 4 2 3 . . . . 2 1 Low Security (%) 33 | 100 100 100 . 100 30 6 79 18 . . . . 62 . . . . . 35 15 . . . . 15 . . . . . . 35 . Level 1 17 | . . . . . 6 49 20 24 . . . . 5 . . . 6 . 61 19 . . . . 21 62 44 . . . . 36 100 Level 2 23 | . . . . . 40 40 . 6 . . . . 18 61 . 15 21 20 2 13 . . . . 34 37 25 . . . . 28 . Level 3 14 | . . . . . 22 3 . 7 . . . . 13 21 . 84 7 60 . 9 . . . . 23 . 30 . . . . . . Level 4 7 | . . . . . . . . 19 . . . . . 2 100 . 63 18 . 7 . . . . 5 . . . . . . . . Level 5 2 | . . . . . . . . 23 . . . . . 14 . . . . . 13 . . . . . . . . . . . . . High Security 1 | . . . . . . . . . . . . . . . . . . . . 20 . . . . . . . . . . . . . Max Security . | . . . . . . . . . . . . . . . . . . . . . . . . . . . . . . . . . . Sterilizations 1 | . . . . . 1 . . . . . . . . . . . . . . . . . . . . . . . . . . . . Peak Influence 2200 | 20 155 135 . 100 999 724 262 1890 . . . . 963 2059 1409 861 1399 1200 408 2200 . . . . 1143 406 833 . . . . 550 287 Initial 1142 | . . 55 . . 17 452 252 . . . . . . 470 1142 555 238 679 408 67 . . . . 95 396 281 . . . . 20 224 Average 490 | 2 30 40 . 30 463 397 96 884 . . . . 258 834 1218 767 1020 878 246 1013 . . . . 561 397 521 . . . . 280 253 Influence Increases 23759 | 55 508 174 . 191 1773 1388 102 2418 176 65 . 60 1462 2469 605 366 1761 1061 6 3053 95 145 15 430 1774 26 747 40 145 1015 50 1378 206 Destroy 0b10 Robot/C 9740 | . 220 80 . 160 1040 600 . 820 100 40 . . 440 1100 280 80 620 700 . 960 40 60 . 180 600 . 100 40 120 860 40 420 40 Destroy 0b10 Robot/NC 1105 | 55 35 30 . 5 135 115 . 65 . . . . 195 50 10 45 130 35 . 55 . . 15 5 40 . 20 . 5 35 . 25 . Destroy Leader 1892 | . 72 10 . 10 280 188 . 184 20 10 . . 150 152 20 . 138 130 . 228 10 10 . 20 102 . 12 . 20 . 10 116 . Allied During Kill 4125 | . . . . . . 29 . 950 56 15 . . 7 1011 264 125 572 . . 1096 . . . . . . . . . . . . . Trap Triggered on 0b10 60 | . . . . . . . . . . . . . 10 . . . . . . . . . . . 50 . . . . . . . . Successful Hack 698 | . 30 . . . 13 112 . 60 . . . . 79 47 13 . 30 34 . 52 . . . . 64 . 78 . . . . 50 36 Select Force Hacks 320 | . 60 . . . 60 . . . . . . . 80 . . . . . . 30 . . . . 30 . . . . . . 60 . Disable Machine 1290 | . 45 . . . 120 90 . 240 . . . . 120 30 . 105 60 60 . 105 . . . . 30 . 210 . . . . 45 30 Destroy Structure 1874 | . 46 54 . 16 95 59 87 69 . . . . 141 64 18 11 136 72 6 482 . . . . 138 26 102 . . . . 242 10 Partial Spotted 270 | . . . . . . 45 15 15 . . . . . . . . 15 . . 15 . . . . 90 . . . . . . 30 45 Lose Combat Pursuer 2385 | . . . . . 30 150 . 15 . . . 60 240 15 . . 60 30 . 30 45 75 . 225 630 . 225 . . 120 . 390 45 Influence Decreases 23579 | 55 365 317 . 146 823 1663 822 550 938 481 690 60 502 1388 1257 1072 1057 1282 1076 949 1024 641 790 278 793 757 321 497 346 508 697 981 453 Entered New Map 11069 | . . 88 . . 28 543 468 . 692 211 690 . . 490 899 834 445 708 758 29 814 243 775 . 57 737 121 307 72 170 677 10 203 Time Decay 9166 | 55 355 229 . 131 645 650 264 460 246 230 . 60 393 458 198 238 422 474 318 440 190 368 15 238 486 10 150 190 254 308 20 551 120 Search Patrol Dispatched 100 | . . . . . . . . . . . . . . . . . . . . . . . . . . . . . . . . . 100 Lost Part 1516 | . 10 . . 15 . 50 70 10 . . . . 31 140 . . 130 100 . 130 20 30 . 40 230 . 50 . 20 20 . 400 20 Lost Ally 1220 | . . . . . . 120 20 80 . 40 . . 20 300 160 . 60 . . 350 . . . . 20 10 . . . 10 . 20 10 Purge Threat 508 | . . . . . 150 300 . . . . . . 58 . . . . . . . . . . . . . . . . . . . . Squads Dispatched 168 | . 4 . . . 10 21 . 10 . . . . 17 8 2 . 9 13 . 27 . 1 . . 22 . 6 . . . . 16 2 Investigation 51 | . 3 . . . 5 5 . 3 . . . . 8 2 2 . 1 1 . 4 . . . . 7 . 3 . . . . 7 . Extermination 24 | . . . . . . 5 . 3 . . . . 5 . . . 1 2 . 2 . . . . 4 . 1 . . . . . 1 Reinforcement 41 | . 1 . . . 5 7 . . . . . . 2 3 . . 5 3 . 6 . . . . 4 . 1 . . . . 3 1 Assault 22 | . . . . . . 1 . 1 . . . . 1 3 . . 1 4 . 10 . 1 . . . . . . . . . . . Garrison 19 | . . . . . . 3 . 3 . . . . . . . . . 3 . 4 . . . . 6 . . . . . . . . Intercept 11 | . . . . . . . . . . . . . 1 . . . 1 . . 1 . . . . 1 . 1 . . . . 6 . Searches Triggered 1 | . . . . . . . . . . . . . . . . . . . . . . . . . . . . . . . . . 1 Unchained Authorized 2 | . . . . . . . . . . . . . 1 . . . . . . . . . . . . . 1 . . . . . . Construction Impeded 9 | . . . . . 1 1 . . . . . . 1 1 . . 2 . . 1 . . . . 1 . . . . . . 1 . Haulers Reinforced 9 | . . . . . . 1 . . . . . . 1 . . . 1 2 . 2 . . . . 1 . . . . . . 1 . Active Scanning Responses . | . . . . . . . . . . . . . . . . . . . . . . . . . . . . . . . . . . Cargo Convoy Interrupts 1 | . . . . . . 1 . . . . . . . . . . . . . . . . . . . . . . . . . . . Stealth | -11 -10 -10 -10 -9 -8 -7 -7 -7 -7 -7 -7 -6 -6 -6 -6 -6 -6 -5 -5 -5 -5 -5 -5 -4 -4 -4 -4 -4 -4 -4 -3 -3 -3 --------- Run | Yrd Mat Min Exi Min Mat Fac Was Fac Low Low Dat Pro Fac Ext Cet Arc Hub Fac Was Fac Upp Upp Zhi Pro Fac Was Fac Upp Upp War Pro Res Arm Distress Signals 31 | . . . . . 1 2 . . . . . . . 5 2 . 1 . . . . . . . 8 . 1 . . 1 . 9 1 Communications Jammed . | . . . . . . . . . . . . . . . . . . . . . . . . . . . . . . . . . . Distress Signals . | . . . . . . . . . . . . . . . . . . . . . . . . . . . . . . . . . . Times Spotted 867 | . 11 14 . 9 67 44 11 39 3 2 4 7 45 68 11 9 36 44 . 53 5 16 . 24 90 3 31 2 7 130 2 67 13 Peak Tracking Total 19 | . 2 5 . 4 5 6 4 5 1 1 4 4 5 18 5 2 9 5 . 9 5 7 . 9 13 3 15 1 3 19 2 13 9 Tactical Retreats 78 | . . 2 . . 2 3 2 1 . . . 1 8 1 . . 2 2 . 2 2 4 . 6 18 . 4 . . 4 . 12 2 Traps | -11 -10 -10 -10 -9 -8 -7 -7 -7 -7 -7 -7 -6 -6 -6 -6 -6 -6 -5 -5 -5 -5 -5 -5 -4 -4 -4 -4 -4 -4 -4 -3 -3 -3 ------- Run | Yrd Mat Min Exi Min Mat Fac Was Fac Low Low Dat Pro Fac Ext Cet Arc Hub Fac Was Fac Upp Upp Zhi Pro Fac Was Fac Upp Upp War Pro Res Arm Traps Triggered 33 | . 2 . . . 3 2 . . . 1 . 2 5 3 . . 2 1 . 1 . . . . 6 . 1 . . . . 4 . Indirectly . | . . . . . . . . . . . . . . . . . . . . . . . . . . . . . . . . . . Trap Hack Attempts . | . . . . . . . . . . . . . . . . . . . . . . . . . . . . . . . . . . Triggered . | . . . . . . . . . . . . . . . . . . . . . . . . . . . . . . . . . . Disarmed . | . . . . . . . . . . . . . . . . . . . . . . . . . . . . . . . . . . Reprogrammed 21 | . . . . . . . . . . . . . 6 . . . . . . 4 . . . . 11 . . . . . . . . Reused 7 | . . . . . . . . . . . . . 1 . . . . . . . . . . 1 5 . . . . . . . . Traps Extracted . | . . . . . . . . . . . . . . . . . . . . . . . . . . . . . . . . . . Installed 6 | . . . . . . . . . . . . . . . . . . . . . . . . 3 3 . . . . . . . . Triggered 7 | . . . . . . . . . . . . . 1 . . . . . . . . . . 1 5 . . . . . . . . Most Traps Carried 3 | . . . . . . . . . . . . . . . . . . . . . . . . 3 3 . . . . . . . . Objects Rigged 2 | . . . . . . . . . . . . . . . . . . . . 2 . . . . . . . . . . . . . Machines | -11 -10 -10 -10 -9 -8 -7 -7 -7 -7 -7 -7 -6 -6 -6 -6 -6 -6 -5 -5 -5 -5 -5 -5 -4 -4 -4 -4 -4 -4 -4 -3 -3 -3 ---------- Run | Yrd Mat Min Exi Min Mat Fac Was Fac Low Low Dat Pro Fac Ext Cet Arc Hub Fac Was Fac Upp Upp Zhi Pro Fac Was Fac Upp Upp War Pro Res Arm Machines Disabled 93 | . 3 . . . 8 6 . 16 . . . . 8 6 1 7 4 4 . 7 . . . . 2 . 14 . 1 1 . 3 2 Max in Single Turn 14 | . 2 . . . 2 4 . 1 . . . . 3 2 1 2 1 1 . 1 . . . . 1 . 14 . 1 1 . 1 1 Garrison Access 2 | . . . . . . . . . . . . . . . . . . . . 1 . . . . 1 . . . . . . . . Machines Repaired . | . . . . . . . . . . . . . . . . . . . . . . . . . . . . . . . . . . Machines Dismantled . | . . . . . . . . . . . . . . . . . . . . . . . . . . . . . . . . . . Machines Sabotaged . | . . . . . . . . . . . . . . . . . . . . . . . . . . . . . . . . . . Overloaded Fab Kills . | . . . . . . . . . . . . . . . . . . . . . . . . . . . . . . . . . . Hacking | -11 -10 -10 -10 -9 -8 -7 -7 -7 -7 -7 -7 -6 -6 -6 -6 -6 -6 -5 -5 -5 -5 -5 -5 -4 -4 -4 -4 -4 -4 -4 -3 -3 -3 --------- Run | Yrd Mat Min Exi Min Mat Fac Was Fac Low Low Dat Pro Fac Ext Cet Arc Hub Fac Was Fac Upp Upp Zhi Pro Fac Was Fac Upp Upp War Pro Res Arm Machines Accessed 200 | . 8 . 1 . 11 28 . 16 1 . 4 . 15 17 4 . 6 7 . 13 1 2 5 . 25 . 9 1 . 2 . 20 4 Terminals 88 | . 5 . . . 5 11 . 8 . . . . 5 16 4 . 6 2 . 5 . . . . 10 . 4 . . . . 4 3 Fabricators 21 | . . . . . . 4 . 4 . . . . 2 . . . . 1 . . . . . . 4 . 1 . . . . 4 1 Repair Stations 21 | . 1 . . . 2 3 . . . . . . 3 1 . . . 1 . 2 . . . . 4 . 1 . . . . 3 . Recycling Units 24 | . 2 . . . 2 5 . 3 . . . . 3 . . . . 1 . 2 . . . . 3 . 1 . . . . 2 . Scanalyzers 19 | . . . . . 2 3 . 1 . . . . 2 . . . . 1 . 2 . . . . 3 . 2 . . . . 3 . Garrison Access 10 | . . . . . . 2 . . . . . . . . . . . 1 . 2 . . . . 1 . . . . . . 4 . Total Hacks 668 | . 36 . 1 . 54 87 . 44 1 . 25 . 56 41 19 . 27 15 . 58 1 5 14 . 75 . 24 1 . 3 . 73 8 Successful 454 | . 24 . 1 . 43 65 . 16 1 . 25 . 38 18 3 . 15 4 . 48 1 5 14 . 62 . 12 1 . 3 . 49 6 Failed 208 | . 11 . . . 10 22 . 28 . . . . 17 23 16 . 12 11 . 9 . . . . 12 . 12 . . . . 23 2 Catastrophic 28 | . 1 . . . . 2 . 8 . . . . 1 5 5 . 2 2 . . . . . . 1 . . . . . . 1 . Database Lockouts 6 | . 1 . . . 1 . . . . . . . 1 . . . . . . 1 . . . . 1 . . . . . . 1 . Manual 341 | . 27 . . . 32 54 . 28 . . . . 26 16 1 . 27 11 . 25 . . . . 40 . 15 . . 1 . 30 8 Terminals 285 | . 20 . . . 24 34 . 17 . . . . 17 34 19 . 27 4 . 19 . . . . 42 . 12 . . . . 10 6 Fabricators 54 | . . . . . . 10 . 15 . . . . 6 . . . . 2 . . . . . . 8 . 2 . . . . 9 2 Repair Stations 87 | . 9 . . . 8 10 . . . . . . 13 7 . . . 1 . 16 . . . . 8 . 3 . . . . 12 . Recycling Units 76 | . 7 . . . 6 14 . 10 . . . . 11 . . . . 3 . 7 . . . . 8 . 2 . . . . 8 . Scanalyzers 85 | . . . . . 16 9 . 2 . . . . 9 . . . . 2 . 9 . . . . 8 . 5 . . . . 25 . Garrison Access 30 | . . . . . . 10 . . . . . . . . . . . 3 . 7 . . . . 1 . . . . . . 9 . Terminal Hacks 111 | . 1 . 1 . 3 7 . 1 1 . 25 . 5 11 3 . 4 . . 9 1 5 14 . 14 . 2 1 . 3 . . . Record 27 | . . . 1 . . . . . . . 11 . . . 3 . . . . . . 4 6 . . . . . . 2 . . . Part Schematic 14 | . . . . . . 1 . . . . 8 . . . . . 1 . . . . . 4 . . . . . . . . . . Robot Schematic 5 | . . . . . . . . . . . 3 . . . . . 1 . . 1 . . . . . . . . . . . . . Robot Analysis 1 | . 1 . . . . . . . . . . . . . . . . . . . . . . . . . . . . . . . . Prototype ID Bank 15 | . . . . . . . . 1 . . 3 . 1 . . . . . . . . . 4 . 5 . 1 . . . . . . Open Door 16 | . . . . . . . . . 1 . . . . 11 . . . . . . 1 1 . . . . . 1 . 1 . . . Open DSF 1 | . . . . . . 1 . . . . . . . . . . . . . . . . . . . . . . . . . . . Level Access Points 1 | . . . . . . . . . . . . . . . . . . . . . . . . . 1 . . . . . . . . Branch Access Points 5 | . . . . . . 1 . . . . . . 1 . . . . . . 1 . . . . 1 . 1 . . . . . . Terminal Index 4 | . . . . . 1 1 . . . . . . . . . . 1 . . 1 . . . . . . . . . . . . . Unreport Threat 4 | . . . . . 1 2 . . . . . . 1 . . . . . . . . . . . . . . . . . . . . Locate Traps 3 | . . . . . 1 . . . . . . . . . . . . . . 1 . . . . 1 . . . . . . . . Reprogram Traps 5 | . . . . . . . . . . . . . 1 . . . . . . 1 . . . . 3 . . . . . . . . Dispatch Records 1 | . . . . . . . . . . . . . . . . . . . . 1 . . . . . . . . . . . . . Recall Investigation 3 | . . . . . . . . . . . . . . . . . . . . 2 . . . . 1 . . . . . . . . Recall Extermination 1 | . . . . . . . . . . . . . . . . . . . . . . . . . 1 . . . . . . . . Recall Reinforcements 3 | . . . . . . 1 . . . . . . . . . . 1 . . . . . . . 1 . . . . . . . . Registered Components 1 | . . . . . . . . . . . . . 1 . . . . . . . . . . . . . . . . . . . . Zone Layout 1 | . . . . . . . . . . . . . . . . . . . . 1 . . . . . . . . . . . . . Fabricator Hacks 14 | . . . . . . 4 . 5 . . . . . . . . . 1 . . . . . . 2 . . . . . . 2 . Network Status 4 | . . . . . . 2 . 1 . . . . . . . . . . . . . . . . . . . . . . . 1 . Load Schematic 6 | . . . . . . 1 . 3 . . . . . . . . . . . . . . . . 1 . . . . . . 1 . Build 4 | . . . . . . 1 . 1 . . . . . . . . . 1 . . . . . . 1 . . . . . . . . Repair Station Hacks 59 | . 8 . . . 6 5 . . . . . . 8 2 . . . . . 15 . . . . 5 . 1 . . . . 9 . Scan Component 32 | . 4 . . . 3 4 . . . . . . 4 1 . . . . . 8 . . . . 2 . 1 . . . . 5 . Repair 26 | . 4 . . . 3 1 . . . . . . 4 1 . . . . . 7 . . . . 2 . . . . . . 4 . Refit 1 | . . . . . . . . . . . . . . . . . . . . . . . . . 1 . . . . . . . . Recycling Unit Hacks 10 | . . . . . 1 3 . . . . . . 2 . . . . . . . . . . . 3 . . . . . . 1 . Retrieve Components 10 | . . . . . 1 3 . . . . . . 2 . . . . . . . . . . . 3 . . . . . . 1 . Scanalyzer 66 | . . . . . 14 9 . 1 . . . . 7 . . . . . . 6 . . . . 6 . 2 . . . . 21 . Insert Component 23 | . . . . . 6 4 . . . . . . 2 . . . . . . 2 . . . . 2 . 1 . . . . 6 . Analyze 27 | . . . . . 7 3 . . . . . . 2 . . . . . . 2 . . . . 1 . . . . . . 12 . Retrieve Study 16 | . . . . . 1 2 . 1 . . . . 3 . . . . . . 2 . . . . 3 . 1 . . . . 3 . Garrison Access Hacks 1 | . . . . . . . . . . . . . . . . . . . . . . . . . 1 . . . . . . . . Seal Access 1 | . . . . . . . . . . . . . . . . . . . . . . . . . 1 . . . . . . . . Unauthorized Hacks 193 | . 15 . . . 19 37 . 9 . . . . 16 5 . . 11 3 . 18 . . . . 31 . 7 . . . . 16 6 Terminals 97 | . 11 . . . 12 15 . 3 . . . . 5 4 . . 11 . . 7 . . . . 17 . 4 . . . . 3 5 Track 4 | . 1 . . . 1 . . . . . . . . . . . . . . 2 . . . . . . . . . . . . . Assimilate 6 | . . . . . . . . . . . . . 1 . . . . . . 1 . . . . 3 . . . . . . . 1 Botnet 45 | . 4 . . . 5 7 . 3 . . . . 3 4 . . 5 . . 2 . . . . 6 . 1 . . . . 2 3 Detonate 1 | . . . . . . . . . . . . . . . . . . . . 1 . . . . . . . . . . . . . Disrupt 4 | . . . . . . . . . . . . . . . . . . . . . . . . . 2 . 2 . . . . . . Operators 8 | . 1 . . . 1 1 . . . . . . 1 . . . 1 . . 1 . . . . 1 . 1 . . . . . . Skim 29 | . 5 . . . 5 7 . . . . . . . . . . 5 . . . . . . . 5 . . . . . . 1 1 Fabricators 24 | . . . . . . 6 . 3 . . . . 2 . . . . 1 . . . . . . 5 . 2 . . . . 4 1 Report 4 | . . . . . . 1 . 1 . . . . . . . . . . . . . . . . 1 . . . . . . 1 . Prioritize 1 | . . . . . . . . 1 . . . . . . . . . . . . . . . . . . . . . . . . . Liberate 14 | . . . . . . 4 . 1 . . . . 1 . . . . 1 . . . . . . 3 . 1 . . . . 2 1 Haulers 4 | . . . . . . 1 . . . . . . . . . . . . . . . . . . 1 . 1 . . . . 1 . Overload 1 | . . . . . . . . . . . . . 1 . . . . . . . . . . . . . . . . . . . . Repair Stations 10 | . . . . . 2 . . . . . . . 2 1 . . . . . . . . . . 3 . 1 . . . . 1 . Mechanics 2 | . . . . . . . . . . . . . . . . . . . . . . . . . 1 . 1 . . . . . . Patch 8 | . . . . . 2 . . . . . . . 2 1 . . . . . . . . . . 2 . . . . . . 1 . Recycling Units 39 | . 4 . . . 4 8 . 3 . . . . 6 . . . . 2 . 4 . . . . 5 . . . . . . 3 . Reject 19 | . 1 . . . 1 5 . 2 . . . . 3 . . . . 1 . 2 . . . . 3 . . . . . . 1 . Recyclers 9 | . 1 . . . 1 1 . 1 . . . . 1 . . . . 1 . 1 . . . . 1 . . . . . . 1 . Mask 8 | . . . . . 1 2 . . . . . . 2 . . . . . . 1 . . . . 1 . . . . . . 1 . Tunnel 3 | . 2 . . . 1 . . . . . . . . . . . . . . . . . . . . . . . . . . . . Scanalyzers 6 | . . . . . 1 . . . . . . . 1 . . . . . . 1 . . . . 1 . . . . . . 2 . Extract 6 | . . . . . 1 . . . . . . . 1 . . . . . . 1 . . . . 1 . . . . . . 2 . Garrison Access 17 | . . . . . . 8 . . . . . . . . . . . . . 6 . . . . . . . . . . . 3 . Broadcast 1 | . . . . . . 1 . . . . . . . . . . . . . . . . . . . . . . . . . . . Redirect 1 | . . . . . . 1 . . . . . . . . . . . . . . . . . . . . . . . . . . . Reprogram 5 | . . . . . . 2 . . . . . . . . . . . . . 2 . . . . . . . . . . . 1 . Intercept 5 | . . . . . . 2 . . . . . . . . . . . . . 2 . . . . . . . . . . . 1 . Watchers 5 | . . . . . . 2 . . . . . . . . . . . . . 2 . . . . . . . . . . . 1 . Data Cores Recovered 3 | . . . . . . . . . . . . . 2 . . . . . . . . . . . 1 . . . . . . . . Used 2 | . . . . . . . . . . . . . 2 . . . . . . . . . . . . . . . . . . . . Hacking Detections 157 | . 8 . . . 10 23 . 15 . . . . 15 10 3 . 6 7 . 11 . . . . 20 . 9 . . . . 16 4 Full Trace Events 23 | . 1 . . . . 3 . 3 . . . . 4 1 2 . . 1 . 1 . . . . 4 . 2 . . . . 1 . Feedback Events 2 | . 1 . . . . . . . . . . . . . . . . . . 1 . . . . . . . . . . . . . Corruption 1 | . 1 . . . . . . . . . . . . . . . . . . . . . . . . . . . . . . . . Hackware Fried 1 | . . . . . . . . . . . . . . . . . . . . 1 . . . . . . . . . . . . . Feedback Blocked . | . . . . . . . . . . . . . . . . . . . . . . . . . . . . . . . . . . Robot Schematics Acquired 5 | . . . . . . . . . . . 3 . . . . . 1 . . 1 . . . . . . . . . . . . . Robots Built . | . . . . . . . . . . . . . . . . . . . . . . . . . . . . . . . . . . Authchips . | . . . . . . . . . . . . . . . . . . . . . . . . . . . . . . . . . . Time 143 | . . . . . . . . . . . . . . . . . . 76 . . . . . . 67 . . . . . . . . Total Robot Build Rating . | . . . . . . . . . . . . . . . . . . . . . . . . . . . . . . . . . . Part Schematics Acquired 52 | . . . . . 13 4 . . . . 8 . 3 . . . 1 . . 4 . . 4 . 5 . . . . . . 10 . Parts Built 3 | . . . . . . 2 . 1 . . . . . . . . . . . . . . . . . . . . . . . . . Authchips . | . . . . . . . . . . . . . . . . . . . . . . . . . . . . . . . . . . Time 126 | . . . . . . 31 . 95 . . . . . . . . . . . . . . . . . . . . . . . . . Total Part Build Rating 9 | . . . . . . 4 . 5 . . . . . . . . . . . . . . . . . . . . . . . . . Part Studies Acquired 16 | . . . . . 1 2 . 1 . . . . 3 . . . . . . 2 . . . . 3 . 1 . . . . 3 . Parts Repaired 25 | . 4 . . . 3 1 . . . . . . 4 1 . . . . . 7 . . . . 2 . . . . . . 3 . Time 846 | . 104 . . . 96 30 . . . . . . 106 25 . . . . . 196 . . . . 87 . . . . . . 202 . Parts Recycled . | . . . . . . . . . . . . . . . . . . . . . . . . . . . . . . . . . . Recycled Matter . | . . . . . . . . . . . . . . . . . . . . . . . . . . . . . . . . . . Retrieved Matter . | . . . . . . . . . . . . . . . . . . . . . . . . . . . . . . . . . . Retrieved Components 31 | . . . . . 9 12 . . . . . . 3 . . . . . . . . . . . 5 . . . . . . 2 . Parts Scanalyzed 19 | . . . . . 6 3 . . . . . . 2 . . . . . . 2 . . . . 1 . . . . . . 5 . Part Schematics Acquired 17 | . . . . . 6 3 . . . . . . 1 . . . . . . 1 . . . . 1 . . . . . . 5 . Parts Damaged 3 | . . . . . 1 . . . . . . . . . . . . . . . . . . . . . . . . . . 2 . Bothacking | -11 -10 -10 -10 -9 -8 -7 -7 -7 -7 -7 -7 -6 -6 -6 -6 -6 -6 -5 -5 -5 -5 -5 -5 -4 -4 -4 -4 -4 -4 -4 -3 -3 -3 ------------ Run | Yrd Mat Min Exi Min Mat Fac Was Fac Low Low Dat Pro Fac Ext Cet Arc Hub Fac Was Fac Upp Upp Zhi Pro Fac Was Fac Upp Upp War Pro Res Arm Used RIF Installer . | . . . . . . . . . . . . . . . . . . . . . . . . . . . . . . . . . . Robots Hacked . | . . . . . . . . . . . . . . . . . . . . . . . . . . . . . . . . . . Non-combat . | . . . . . . . . . . . . . . . . . . . . . . . . . . . . . . . . . . Combat . | . . . . . . . . . . . . . . . . . . . . . . . . . . . . . . . . . . Robot Hacks Applied . | . . . . . . . . . . . . . . . . . . . . . . . . . . . . . . . . . . Relay Couplers Released 4 | . . . . . . . . . . . . . . . . . . . . 3 . . . . 1 . . . . . . . . Machine Destruction 4 | . . . . . . . . . . . . . . . . . . . . 3 . . . . 1 . . . . . . . . Fabnet Peak Effective % . | . . . . . . . . . . . . . . . . . . . . . . . . . . . . . . . . . . Robots Rewired 16 | . . . . . . . . . . . . . . 16 . . . . . . . . . . . . . . . . . . . Allies Hacked 1 | . . . . . . . . . . . . . . 1 . . . . . . . . . . . . . . . . . . . Hacks Repelled 1 | . . . . . . . . . . . . . . 1 . . . . . . . . . . . . . . . . . . . Allies | -11 -10 -10 -10 -9 -8 -7 -7 -7 -7 -7 -7 -6 -6 -6 -6 -6 -6 -5 -5 -5 -5 -5 -5 -4 -4 -4 -4 -4 -4 -4 -3 -3 -3 -------- Run | Yrd Mat Min Exi Min Mat Fac Was Fac Low Low Dat Pro Fac Ext Cet Arc Hub Fac Was Fac Upp Upp Zhi Pro Fac Was Fac Upp Upp War Pro Res Arm Total Allies 98 | . . . . . . 6 20 . 1 . . . 2 32 5 . . . 20 7 . . . . 3 . . . . . . 1 1 Largest Group 23 | . . . . . . 4 19 19 8 7 5 . 2 23 13 6 6 . 20 20 . . . . 1 1 . . . . . 1 1 Highest-Rated Group 840 | . . . . . . 74 465 463 374 207 145 . 82 818 840 452 445 . 779 779 . . . . 23 23 . . . . . 40 10 Highest-Rated Ally 167 | . . . . . . 21 35 35 167 31 31 . 41 159 152 96 96 . 50 50 . . . . 23 23 . . . . . 40 10 Total Orders 4 | . . . . . . . . . . . . . . . . 2 . . . . . . . . . . . . . 2 . . . STAY 1 | . . . . . . . . . . . . . . . . 1 . . . . . . . . . . . . . . . . . FOLLOW 1 | . . . . . . . . . . . . . . . . 1 . . . . . . . . . . . . . . . . . EXPLORE 2 | . . . . . . . . . . . . . . . . . . . . . . . . . . . . . . 2 . . . Ally Attacks 929 | . . . . . . 49 24 256 10 15 15 . 6 192 56 13 68 . . 225 . . . . . . . . . . . . . Total Damage 20101 | . . . . . . 817 623 3999 338 250 170 . 229 3942 1425 395 2523 . . 5390 . . . . . . . . . . . . . Kills 153 | . . . . . . 4 3 42 4 2 . . 2 28 15 2 15 . . 36 . . . . . . . . . . . . . Allies Corrupted . | . . . . . . . . . . . . . . . . . . . . . . . . . . . . . . . . . . Allies Melted 1 | . . . . . . . . . . 1 . . . . . . . . . . . . . . . . . . . . . . . Intel | -11 -10 -10 -10 -9 -8 -7 -7 -7 -7 -7 -7 -6 -6 -6 -6 -6 -6 -5 -5 -5 -5 -5 -5 -4 -4 -4 -4 -4 -4 -4 -3 -3 -3 ------- Run | Yrd Mat Min Exi Min Mat Fac Was Fac Low Low Dat Pro Fac Ext Cet Arc Hub Fac Was Fac Upp Upp Zhi Pro Fac Was Fac Upp Upp War Pro Res Arm Active Infowar (turns) 2778 | 173 596 . . . . 297 . 585 539 331 . . . . 16 . . . . . 2 1 . . . . . . . 2 . 19 217 Optics 453 | . . . . . . 297 . 140 . . . . . . 16 . . . . . . . . . . . . . . . . . . Sensors 1315 | . . . . . . . . 445 539 331 . . . . . . . . . . . . . . . . . . . . . . . Terrain 650 | 54 596 . . . . . . . . . . . . . . . . . . . . . . . . . . . . . . . . Traps 2 | . . . . . . . . . . . . . . . . . . . . . . . . . . . . . . 2 . . . Seismic 119 | 119 . . . . . . . . . . . . . . . . . . . . . . . . . . . . . . . . . Cloaking 220 | . . . . . . . . . . . . . . . . . . . . . 2 1 . . . . . . . . . . 217 Jamming 19 | . . . . . . . . . . . . . . . . . . . . . . . . . . . . . . . . 19 . Robot Analysis Total 154 | . 1 . . . . . . . . . 153 . . . . . . . . . . . . . . . . . . . . . . Derelict Logs Recovered 7 | . . . . . . . . . 1 . . . . . . . . . . . . 2 . 1 . . . 1 2 . . . . Drone Launches 4 | . . . . . . . . . . . . . . . . . . . . . . . . . . . . . . 2 . 2 . Drone Recoveries . | . . . . . . . . . . . . . . . . . . . . . . . . . . . . . . . . . . Exploration | -11 -10 -10 -10 -9 -8 -7 -7 -7 -7 -7 -7 -6 -6 -6 -6 -6 -6 -5 -5 -5 -5 -5 -5 -4 -4 -4 -4 -4 -4 -4 -3 -3 -3 ------------- Run | Yrd Mat Min Exi Min Mat Fac Was Fac Low Low Dat Pro Fac Ext Cet Arc Hub Fac Was Fac Upp Upp Zhi Pro Fac Was Fac Upp Upp War Pro Res Arm Turns Passed 29631 | 295 1909 626 435 334 3595 2398 681 1276 539 486 57 369 2127 1156 404 507 1023 1207 712 1353 388 848 258 608 1274 37 305 392 549 1147 268 1818 250 Spaces Moved 29776 | 136 988 325 267 178 1801 1904 731 1679 966 786 94 534 2881 1072 293 235 677 656 448 1175 576 812 196 854 1872 66 584 930 1078 1226 430 2936 390 Core 614 | 1 . . . . . . 583 . . . . . . . . . 1 . . . . . . . . . . . . . . 29 . Treads 4591 | 133 988 325 267 178 1801 884 . . . . . . . 9 . . . . . . . 6 . . . . . . . . . . . Legs 1785 | . . . . . . . . . . . . . . . . . 346 656 448 335 . . . . . . . . . . . . . Wheels 2 | 2 . . . . . . . . . . . . . . . . . . . . . . . . . . . . . . . . . Hover 22484 | . . . . . . 1020 148 1679 966 786 94 534 2881 1063 293 235 330 . . 840 576 806 196 854 1872 66 584 930 1078 1226 430 2791 206 Flight 300 | . . . . . . . . . . . . . . . . . . . . . . . . . . . . . . . . 116 184 Fastest Speed 29 | 50 160 160 160 160 160 43 43 45 45 45 40 40 48 48 53 53 48 120 120 43 56 56 44 33 29 41 30 35 39 30 54 34 37 Average Speed 70 | 158 160 160 160 160 161 97 64 53 45 46 46 61 50 50 54 53 93 120 120 70 56 80 63 42 42 41 38 38 39 44 57 45 42 Slowest Speed 600 | 160 240 160 160 160 163 162 171 121 45 105 105 105 106 240 110 53 600 120 120 186 119 240 99 96 114 41 41 39 39 123 133 147 48 Overloaded Moves 356 | . . . . . . . . . . . 23 62 . . . . . . . . . . . 20 80 . 128 . . 12 . 31 . Propulsion Burnouts . | . . . . . . . . . . . . . . . . . . . . . . . . . . . . . . . . . . Robots Hopped 3 | . . . . . . . . . . . . . . . . . . . . . . . . . . . . . . . . 2 1 Potential Cave-ins 15 | . . 1 . . . . . . . . . . . . . . . . . 2 . . . . 4 . . . . . . 2 6 Cave-ins Triggered 1 | . . . . . . . . . . . . . . . . . . . . . . . . . 1 . . . . . . . . Teleports 1 | . . . . . . . . . . . . . . . . . . . . . . . . . 1 . . . . . . . . Exploration Rate (%) 62 | 7 98 61 56 36 92 45 96 39 77 79 78 76 32 86 69 78 40 15 97 25 69 70 61 74 48 61 25 83 93 92 64 82 21 Regions Visited 33 Branch Regions 20 Pre-discovered Areas 37 | . 3 1 1 . 1 . . . . . 25 . . . . . 2 . . . . 1 3 . . . . . . . . . . Known Exits Taken 13 | . . . . . . . . 1 1 . . 1 1 . . . 1 . . 1 1 1 . 1 . . 1 1 . . 1 1 . Unknown Exits Taken 14 | 1 1 1 1 1 1 . . . . 1 1 . . 1 1 1 . . . . . . 1 . . . . . 1 1 . . . Scrap Searched 24 | . . 1 . . . . . . 4 4 . 2 . . . . . . . . 2 4 . . . . . 1 5 . 1 . . Spaces Dug 113 | . . 5 . . 9 6 . . . . . 7 21 2 . . . . . 8 1 1 . 2 26 . 3 2 1 . . 14 5 Terrain Destroyed 1480 | . 49 78 . 20 100 59 127 6 2 2 . 12 149 78 25 17 165 43 4 116 7 10 . 25 78 21 59 6 28 47 2 136 9 Melee 13 | . . . . . . . . . . . . 7 5 . . . . . . . . 1 . . . . . . . . . . . Projectile 490 | . . . . . . 2 1 6 2 2 . 5 76 31 25 17 71 15 4 57 7 9 . 25 49 . 9 6 3 30 2 27 9 AOE 977 | . 49 78 . 20 100 57 126 . . . . . 68 47 . . 94 28 . 59 . . . . 29 21 50 . 25 17 . 109 . Terrain Rammed . | . . . . . . . . . . . . . . . . . . . . . . . . . . . . . . . . . . Walls Destroyed . | . . . . . . . . . . . . . . . . . . . . . . . . . . . . . . . . . . Machines Disabled . | . . . . . . . . . . . . . . . . . . . . . . . . . . . . . . . . . . Actions | -11 -10 -10 -10 -9 -8 -7 -7 -7 -7 -7 -7 -6 -6 -6 -6 -6 -6 -5 -5 -5 -5 -5 -5 -4 -4 -4 -4 -4 -4 -4 -3 -3 -3 --------- Run | Yrd Mat Min Exi Min Mat Fac Was Fac Low Low Dat Pro Fac Ext Cet Arc Hub Fac Was Fac Upp Upp Zhi Pro Fac Was Fac Upp Upp War Pro Res Arm Total 35759 | 171 1220 371 277 206 2209 2240 884 1957 1067 894 101 553 3314 1567 492 562 898 886 601 1558 622 972 261 1041 2177 71 644 946 1165 1632 444 3303 453 Wait 2675 | . 122 5 . 3 169 155 83 141 96 95 2 2 111 259 151 274 43 11 95 211 16 109 . 141 74 . 12 2 51 166 1 74 1 Move 29739 | 135 987 324 266 177 1800 1904 730 1678 965 785 93 533 2880 1071 292 234 676 656 447 1174 575 811 195 853 1871 65 583 929 1077 1225 429 2931 388 Hop 3 | . . . . . . . . . . . . . . . . . . . . . . . . . . . . . . . . 2 1 Pick Up 409 | 3 24 . 3 2 21 17 9 27 1 3 . 2 33 20 6 9 16 25 10 22 4 7 8 4 30 1 9 2 5 30 2 48 6 Fast Attach 238 | 9 7 . 2 1 11 7 2 12 . . . 1 21 13 3 2 14 14 3 15 2 7 4 2 23 . 4 1 1 17 5 26 9 Attach 210 | . 1 . 1 2 5 7 4 6 . 2 1 . 14 17 2 3 15 10 1 15 5 5 5 3 18 1 3 4 2 7 . 37 14 Detach 119 | 1 . . 1 1 3 4 2 5 . 2 . . 11 9 3 1 9 5 1 11 5 2 1 1 7 . 2 1 1 5 . 14 11 Swap 381 | . 8 8 . 6 42 33 6 9 2 2 3 1 25 4 3 4 15 36 20 21 1 6 3 3 25 2 6 1 10 36 2 38 . Drop 432 | 1 17 . 4 3 31 20 9 25 2 1 . . 44 15 8 9 15 36 14 20 5 9 10 1 16 . 10 . 1 49 3 49 5 Fire 1343 | 22 54 34 . 11 127 93 33 53 1 4 1 6 123 64 24 26 81 92 8 69 9 15 35 30 99 2 15 6 17 95 2 74 18 Melee 18 | . . . . . . . . . . . 1 8 8 . . . . . . . . 1 . . . . . . . . . . . Ram 7 | . . . . . . . 6 1 . . . . . . . . . . . . . . . . . . . . . . . . . Kick 1 | . . . . . . . . . . . . . . . . . . 1 . . . . . . . . . . . . . . . Crush . | . . . . . . . . . . . . . . . . . . . . . . . . . . . . . . . . . . Escape Stasis 100 | . . . . . . . . . . . . . 44 21 . . 14 . . . . . . . 11 . . . . . . 10 . Rewire 77 | . . . . . . . . . . . . . . 74 . . . . 2 . . . . . . . . . . 1 . . . Trap 6 | . . . . . . . . . . . . . . . . . . . . . . . . 3 3 . . . . . . . . Miscellaneous 1 | . . . . . . . . . . . . . . . . . . . . . . . . . . . . . . 1 . . . Route ------- -11/Scrapyard -10/Materials (discovered 6 exits: [*Mat x3] / [*Min x2] / Sub) -10/Mines (discovered 3 exits: [*Mat x2] / *Exi) -10/Exiles -9/Mines -8/Materials (discovered 2 exits: *Fac x2) -7/Factory (discovered 3 exits: *Fac / Low x2) -7/Waste -7/Factory (discovered 2 exits: *Fac / *Low) -7/Lower Caves (discovered 2 exits: *Low / *Fac) -7/Lower Caves (discovered 2 exits: *Fac / *Dat) -7/Data Miner -6/Proximity Caves -6/Factory (discovered 5 exits: *Fac / Low x2 / *Ext x2) -6/Extension (discovered 2 exits: *Fac / *Cet) -6/Cetus (discovered 2 exits: *Fac / [*Arc]) -6/Archives (discovered 3 exits: *Fac / *Hub x2) -6/Hub_04(d) (discovered 3 exits: *Fac x3) -5/Factory (discovered 5 exits: *Fac x3 / Upp x2) -5/Waste -5/Factory (discovered 4 exits: *Fac x2 / *Upp x2) -5/Upper Caves -5/Upper Caves (discovered 2 exits: *Fac / *Zhi) -5/Zhirov -4/Proximity Caves -4/Factory (discovered 6 exits: *Res x4 / *Upp x2) -4/Waste -4/Factory (discovered 4 exits: Res x2 / *Upp x2) -4/Upper Caves -4/Upper Caves (discovered 2 exits: *Res / *War) -4/Warlord -3/Proximity Caves -3/Research (discovered 6 exits: *Res x3 / *Arm / *Tes x2) -3/Armory History --------- Turn | Location | Event 11 | -11/Scrapyard | Discovered new exit (range 15) 296 | -11/Scrapyard | Entered Materials 316 | -10/Materials | Build established: Mutant 609 | -10/Materials | Discovered new exit (range 9) 668 | -10/Materials | Discovered new exit (range 8) 1011 | -10/Materials | Discovered new exit (range 15) 1192 | -10/Materials | Discovered new exit (range 16) 1236 | -10/Materials | Repaired Lgt. Treads 1264 | -10/Materials | Repaired Lgt. Treads 1291 | -10/Materials | Repaired Weapon Shielding 1319 | -10/Materials | Repaired Ion Engine 1552 | -10/Materials | Discovered new exit (range 15) 1577 | -10/Materials | Central database locked down 1620 | -10/Materials | Learned Storage garrison access intel 1680 | -10/Materials | Learned location of Recycling (-9) 1695 | -10/Materials | Identified exit to Subcaves 1718 | -10/Materials | Loaded intel: 11 trap records 2205 | -10/Materials | Entered Mines 2219 | -10/Mines | Assembled infested the area 2224 | -10/Mines | Assisted by a Guerilla fighting off Assembled 2266 | -10/Mines | Core integrity fell below 50% 2270 | -10/Mines | Core integrity fell below 20% 2391 | -10/Mines | Discovered new exit (range 9) 2610 | -10/Mines | A weapon hastily lodged in a ceiling crevice suddenly fell to the ground 2711 | -10/Mines | Discovered new exit (range 7) 2748 | -10/Mines | Found a hidden stash of uninstalled traps 2766 | -10/Mines | Learned location of Storage (-9) 2823 | -10/Mines | Deemed a non-threat by the Exiles lab entrance 2823 | -10/Mines | Discovered new exit (range 5) 2831 | -10/Mines | Entered Exiles 2858 | -10/Exiles | Discovered new exit (range 14) 2897 | -10/Exiles | Met 8R-AWN 2923 | -10/Exiles | Met EX-HEX 3005 | -10/Exiles | Met EX-DEC 3033 | -10/Exiles | Learned location of Zion (-6) 3266 | -10/Exiles | Entered Mines 3415 | -9/Mines | Received a Rocket Launcher from a helpful Derelict 3584 | -9/Mines | Discovered new exit (range 11) 3600 | -9/Mines | Entered Materials 3600 | -8/Materials | Evolved 4 slots: Propulsion x1, Utility x2, Weapon x1 3984 | -8/Materials | Build established: Scavenger-Tank 4423 | -8/Materials | Repaired Lgt. Cannon+ 4438 | -8/Materials | Repaired Lgt. Cannon+ 4735 | -8/Materials | Build established: Hacker-Gunner 4747 | -8/Materials | Destroyed 10 combat bots 4984 | -8/Materials | Destroyed 7 combat bots 5403 | -8/Materials | Central database locked down 5476 | -8/Materials | Destroyed 7 combat bots 5692 | -8/Materials | Build established: Hacker-Tank 5850 | -8/Materials | Discovered new exit (range 16) 6144 | -8/Materials | Build established: Hacker-Gunner 6430 | -8/Materials | Discovered new exit (range 16) 6626 | -8/Materials | Repaired Enh. Nuclear Core 7008 | -8/Materials | Sterilization system engaged 7008 | -8/Materials | Non-combat units ordered to evacuate 7108 | -8/Materials | Combat units ordered to evacuate 7195 | -8/Materials | Entered Factory 7195 | -7/Factory | Evolved 2 slots: Propulsion x1, Utility x1 7427 | -7/Factory | Identified exit to DSF 7521 | -7/Factory | Build established: Hacker-Skirmisher 7822 | -7/Factory | Build established: Hacker-Tank 8675 | -7/Factory | Discovered new exit (range 11) 8803 | -7/Factory | Cargo convoy interrupted 9118 | -7/Factory | Lost 3 parts (2n1w) 9128 | -7/Factory | Build established: Hacker-Gunner 9195 | -7/Factory | First assault squad dispatched 9331 | -7/Factory | Repaired Broken Gravmag System+ 9338 | -7/Factory | Identified exit to Lower Caves 9462 | -7/Factory | Fabricated Imp. Light Cannon (x2) 9593 | -7/Factory | Sucked down chute 9593 | -7/Factory | Entered Waste 9594 | -7/Waste | Met a frightened Derelict 9606 | -7/Waste | Spotted C-40 Crusher 9608 | -7/Waste | EMP discharged 9608 | -7/Waste | System corruption reached 10% 9608 | -7/Waste | Destroyed C-40 Crusher 9613 | -7/Waste | Spotted C-40 Crusher 9662 | -7/Waste | Destroyed C-40 Crusher 9673 | -7/Waste | Spotted C-40 Crusher 9703 | -7/Waste | Spotted C-40 Crusher 9708 | -7/Waste | EMP discharged 9734 | -7/Waste | Spotted C-40 Crusher 9738 | -7/Waste | Spotted C-40 Crusher 9747 | -7/Waste | Discovered new exit (range 16) 9767 | -7/Waste | Destroyed C-40 Crusher 9795 | -7/Waste | Crushed by Compactor (1 part destroyed, 1 dropped) 9800 | -7/Waste | Crushed by Compactor (1 part destroyed, 1 dropped) 9803 | -7/Waste | Crushed by Compactor (1 part destroyed, 2 dropped) 9804 | -7/Waste | Crushed by Compactor (1 part destroyed, 1 dropped) 9806 | -7/Waste | Crushed by Compactor (1 part destroyed, 2 dropped) 9807 | -7/Waste | Crushed by Compactor (1 part destroyed) 9808 | -7/Waste | EMP discharged 9808 | -7/Waste | Core integrity fell below 50% 9838 | -7/Waste | Lost 6 parts (1p2n2u1w) 9908 | -7/Waste | EMP discharged 9908 | -7/Waste | System corruption reached 30% 10008 | -7/Waste | EMP discharged 10108 | -7/Waste | Build established: Mutant 10108 | -7/Waste | EMP discharged 10138 | -7/Waste | Met Warlord forces unprepared to attack 10150 | -7/Waste | Allies destroyed C-40 Crusher 10208 | -7/Waste | EMP discharged 10274 | -7/Waste | Entered Factory 10274 | -7/Factory | Accompanied by 19 allies 10835 | -7/Factory | Discovered exit to Lower Caves (range 14) 10839 | -7/Factory | Core integrity fell below 20% 10874 | -7/Factory | Garrison activated, responded to threat 10932 | -7/Factory | P-60 Hacker assimilated allied HZ-MSI(s) 11026 | -7/Factory | Noticed a derelict Sapper rigging charges 11074 | -7/Factory | First assault squad dispatched 11168 | -7/Factory | Discovered new exit (range 13) 11381 | -7/Factory | Fabricated Gravmag Array (x1) 11405 | -7/Factory | Build established: Skirmisher 11550 | -7/Factory | Entered Lower Caves 11550 | -7/Lower Caves | Accompanied by 7 allies 11650 | -7/Lower Caves | Learned Factory garrison access intel 12016 | -7/Lower Caves | Spotted B-75 Beast 12017 | -7/Lower Caves | P1-3CE showed up to help 12019 | -7/Lower Caves | P1-3CE revealed a hidden path 12023 | -7/Lower Caves | Identified exit to Factory 12030 | -7/Lower Caves | Discovered new exit (range 14) 12084 | -7/Lower Caves | Identified exit to Lower Caves 12089 | -7/Lower Caves | Entered another Lower Caves area 12089 | -7/Lower Caves | Accompanied by 7 allies 12090 | -7/Lower Caves | Encountered a Warlord checkpoint 12093 | -7/Lower Caves | Discovered exit to Factory (range 5) 12142 | -7/Lower Caves | Spotted B-75 Beast 12160 | -7/Lower Caves | Allies destroyed B-75 Beast 12512 | -7/Lower Caves | Discovered new exit (range 13) 12575 | -7/Lower Caves | Entered Data Miner 12575 | -7/Data Miner | Accompanied by 5 allies 12575 | -7/Data Miner | Discovered new exit (range 6) 12585 | -7/Data Miner | Met Data Miner 12598 | -7/Data Miner | Learned location of Section 7 (-2) 12598 | -7/Data Miner | Acquired the access code to Warlord's prototype stash 12602 | -7/Data Miner | Received God Mode back door access code from Data Miner 12611 | -7/Data Miner | Interfaced with the Data Conduit 12632 | -7/Data Miner | Entered Proximity Caves 12660 | -6/Proximity Caves | Lost 3 allies 12777 | -6/Proximity Caves | Spotted B-75 Beast 12873 | -6/Proximity Caves | Discovered exit to Factory (range 7) 12985 | -6/Proximity Caves | Ambushed by research squad 13001 | -6/Proximity Caves | Entered Factory 13001 | -6/Factory | Evolved 2 slots: Propulsion x1, Utility x1 13002 | -6/Factory | Loaded intel: 267 machine locations 13003 | -6/Factory | Loaded intel: 4 garrison access locations 13030 | -6/Factory | Build established: Mutant 13123 | -6/Factory | Discovered new exit (range 16) 13452 | -6/Factory | Spotted B-75 Beast 13711 | -6/Factory | Central database locked down 13878 | -6/Factory | Repaired Smartbomb Launcher? 14054 | -6/Factory | Repaired Gravmag System+ 14100 | -6/Factory | Identified exit to Lower Caves 14100 | -6/Factory | Identified exit to Extension 14139 | -6/Factory | P-60 Hacker assimilated allied H-66 Slayer 14236 | -6/Factory | Intercept squad dispatched 14251 | -6/Factory | Spotted Tracker 14285 | -6/Factory | Destroyed Tracker 14300 | -6/Factory | Spotted Combat Programmer 14322 | -6/Factory | System corruption reached 10% 14324 | -6/Factory | Destroyed Combat Programmer 14329 | -6/Factory | Found Corrupted Exp. Targeting Computer 14415 | -6/Factory | Build established: Hacker-Gunner 14445 | -6/Factory | Discovered new exit (range 15) 14609 | -6/Factory | Repaired Hardcell Cannon? 14697 | -6/Factory | Unchained authorized (DW-4LL) 14707 | -6/Factory | Repaired Gravmag Array+? 14960 | -6/Factory | DW-4LL burst out of a wall 15101 | -6/Factory | First assault squad dispatched 15128 | -6/Factory | Entered Extension 15129 | -6/Extension | Loaded intel: 46 machine locations 15162 | -6/Extension | Rescued a captive Derelict 15175 | -6/Extension | Rescued a captive Derelict 15176 | -6/Extension | Rescued a captive Derelict 15184 | -6/Extension | Rescued a captive Derelict 15186 | -6/Extension | Rescued a captive Derelict 15188 | -6/Extension | Rescued a captive Derelict 15310 | -6/Extension | Rescued a captive Derelict 15353 | -6/Extension | Rescued a captive Derelict 15485 | -6/Extension | Repaired Imp. Gravmag System+? 15683 | -6/Extension | Spotted B-75 Beast 15698 | -6/Extension | Spotted B-75 Beast 15701 | -6/Extension | Destroyed B-75 Beast 15708 | -6/Extension | Allies destroyed B-75 Beast 15733 | -6/Extension | Lost 3 parts (1n2u) 15751 | -6/Extension | Build established: Commander-Gunner 15834 | -6/Extension | Rescued A7 15845 | -6/Extension | Rescued a captive Derelict 15846 | -6/Extension | Rescued a captive Derelict 15875 | -6/Extension | Rescued a captive Derelict 15880 | -6/Extension | Rescued a captive Derelict 15882 | -6/Extension | Rescued a captive Derelict 15886 | -6/Extension | Rescued a captive Derelict 15907 | -6/Extension | Rescued a captive Derelict 15928 | -6/Extension | Disrupted transfer network 15950 | -6/Extension | Core integrity fell below 50% 15991 | -6/Extension | Lost 3 parts (1n2w) 16043 | -6/Extension | Discovered new exit (range 10) 16049 | -6/Extension | Discovered new exit (range 6) 16102 | -6/Extension | Disrupted transfer network 16133 | -6/Extension | Destroyed 10 combat bots 16136 | -6/Extension | Lost 3 allies 16178 | -6/Extension | First assault squad dispatched 16228 | -6/Extension | Lost 5 parts (1p2n2w) 16241 | -6/Extension | Lost 7 allies 16284 | -6/Extension | Entered Cetus 16284 | -6/Cetus | Accompanied by 13 allies (A7) 16285 | -6/Cetus | Loaded intel: 24 machine locations 16289 | -6/Cetus | Acquired a Cetus Manufacturing Module code from A7 16313 | -6/Cetus | Spotted Cetus Guard 16313 | -6/Cetus | Spotted Cetus Guard 16313 | -6/Cetus | Destroyed Cetus Guard 16314 | -6/Cetus | Spotted Cetus Guard 16315 | -6/Cetus | Spotted Cetus Guard 16320 | -6/Cetus | Destroyed Cetus Guard 16329 | -6/Cetus | Allies destroyed Cetus Guard 16333 | -6/Cetus | Allies destroyed Cetus Guard 16362 | -6/Cetus | Lost 5 allies 16364 | -6/Cetus | Started Cetus Manufacturing Module 16376 | -6/Cetus | Found a strange terminal 16388 | -6/Cetus | Discovered new exit (range 16) 16389 | -6/Cetus | Manufactured an Enhanced Grunt 16414 | -6/Cetus | Manufactured an Enhanced Grunt 16439 | -6/Cetus | Manufactured an Enhanced Grunt 16464 | -6/Cetus | Manufactured an Enhanced Grunt 16489 | -6/Cetus | Manufactured an Enhanced Grunt 16524 | -6/Cetus | Spotted Cetus Guard 16524 | -6/Cetus | Spotted Cetus Guard 16528 | -6/Cetus | Allies destroyed Cetus Guard 16528 | -6/Cetus | Spotted Cetus Guard 16529 | -6/Cetus | Spotted Cetus Guard 16536 | -6/Cetus | Allies destroyed Cetus Guard 16536 | -6/Cetus | Allies destroyed Cetus Guard 16538 | -6/Cetus | Allies destroyed Cetus Guard 16545 | -6/Cetus | Discovered new exit (range 16) 16549 | -6/Cetus | Met Revision 17 16561 | -6/Cetus | Lost 3 allies 16680 | -6/Cetus | Murdered A7 16684 | -6/Cetus | Extracted ID and sensor layout for unrecognized location from A7's data core 16688 | -6/Cetus | Entered Archives 16688 | -6/Archives | Accompanied by 6 allies 16689 | -6/Archives | Loaded intel: 8 machine locations 16759 | -6/Archives | Discovered new exit (range 16) 16766 | -6/Archives | Discovered new exit (range 16) 16805 | -6/Archives | Discovered new exit (range 16) 16862 | -6/Archives | Build established: Scavenger-Gunner 17195 | -6/Archives | Entered Hub_04(d) 17195 | -6/Hub_04(d) | Accompanied by 6 allies 17196 | -6/Hub_04(d) | Loaded intel: 77 machine locations 17547 | -6/Hub_04(d) | Learned 4 Factory zone layouts 17574 | -6/Hub_04(d) | Core integrity fell below 20% 17593 | -6/Hub_04(d) | Learned location of 2 exits from Upper Caves 17601 | -6/Hub_04(d) | Identified exit to Factory 17602 | -6/Hub_04(d) | Learned location of 2 exits from Upper Caves 17603 | -6/Hub_04(d) | Learned 12 Factory zone layouts 17607 | -6/Hub_04(d) | Learned 4 Lower Caves zone layouts 17613 | -6/Hub_04(d) | Destroyed 7 combat bots 17622 | -6/Hub_04(d) | Learned 4 Proximity Caves zone layouts 17849 | -6/Hub_04(d) | Intercept squad dispatched 17855 | -6/Hub_04(d) | Spotted Tracker 17873 | -6/Hub_04(d) | Destroyed Tracker 17895 | -6/Hub_04(d) | First assault squad dispatched 17903 | -6/Hub_04(d) | Spotted Combat Programmer 17941 | -6/Hub_04(d) | Destroyed Combat Programmer 17961 | -6/Hub_04(d) | Lost 5 parts (1p2n2w) 18218 | -6/Hub_04(d) | Entered Factory 18218 | -5/Factory | Evolved 2 slots: Propulsion x1, Utility x1 18219 | -5/Factory | Identified exit to Factory 18219 | -5/Factory | Identified exit to Upper Caves 18220 | -5/Factory | Loaded intel: 308 machine locations 18436 | -5/Factory | Spotted B-75 Beast 18518 | -5/Factory | First assault squad dispatched 18692 | -5/Factory | Garrison activated, responded to threat 19344 | -5/Factory | Lost 4 parts (1n2u1w) 19425 | -5/Factory | Sucked down chute 19425 | -5/Factory | Entered Waste 19426 | -5/Waste | Joined by Warlord forces that had cleared the area 19506 | -5/Waste | Found Unknown Launcher 19506 | -5/Waste | Identified Gamma Bomb Array 19746 | -5/Waste | Found Fusion Bomb Launcher 19869 | -5/Waste | Discovered new exit (range 13) 19959 | -5/Waste | Build established: Hacker-Tank 20137 | -5/Waste | Entered Factory 20137 | -5/Factory | Accompanied by 20 allies 20138 | -5/Factory | Loaded intel: 257 machine locations 20222 | -5/Factory | Discovered exit to Factory (range 10) 20307 | -5/Factory | Lost 3 allies 20431 | -5/Factory | Repaired Hardcell Cannon 20463 | -5/Factory | Repaired Hardcell Cannon 20492 | -5/Factory | Repaired Rnf. Fission Core 20510 | -5/Factory | Repaired Imp. Hover Unit 20647 | -5/Factory | Central database locked down 20647 | -5/Factory | Hacking Suite fried by hacking feedback 20695 | -5/Factory | Lost 3 allies 20794 | -5/Factory | Spotted B-75 Beast 20795 | -5/Factory | Discovered exit to Factory (range 15) 20801 | -5/Factory | Destroyed B-75 Beast 20845 | -5/Factory | Repaired Adv. Assault Cannon+ 20887 | -5/Factory | Repaired Antimatter Cannon 20916 | -5/Factory | Repaired Enh. Gauss Cannon+ 20931 | -5/Factory | Garrison activated, responded to threat 21031 | -5/Factory | Garrison activated, responded to threat 21198 | -5/Factory | Lost 4 allies 21213 | -5/Factory | Build established: Hacker-Gunner 21217 | -5/Factory | High security lockdown imminent 21272 | -5/Factory | Intercept squad dispatched 21284 | -5/Factory | Spotted Tracker 21292 | -5/Factory | Destroyed Tracker 21297 | -5/Factory | High security lockdown engaged 21317 | -5/Factory | Spotted Combat Programmer 21318 | -5/Factory | Combat Programmer assimilated allied JV-298(m) 21346 | -5/Factory | Destroyed Combat Programmer 21357 | -5/Factory | Lost 4 parts (1p2n1u) 21463 | -5/Factory | System corruption reached 10% 21470 | -5/Factory | Lost 5 parts (2n2u1w) 21490 | -5/Factory | Entered Upper Caves 21491 | -5/Upper Caves | Identified exit to Upper Caves 21727 | -5/Upper Caves | Build established: Hacker-Mutant 21878 | -5/Upper Caves | Entered another Upper Caves area 21879 | -5/Upper Caves | Identified exit to Zhirov 21993 | -5/Upper Caves | Entered an active Warlord outpost 21996 | -5/Upper Caves | Learned Research security intel 21996 | -5/Upper Caves | Learned Armory security intel 22071 | -5/Upper Caves | Attracted the attention of an 0b10 outpost 22206 | -5/Upper Caves | Lost 5 allies 22414 | -5/Upper Caves | Attracted the attention of an 0b10 checkpoint 22416 | -5/Upper Caves | Core integrity fell below 50% 22447 | -5/Upper Caves | Learned Factory emergency access door positions 22572 | -5/Upper Caves | Build established: Scavenger-Mutant 22726 | -5/Upper Caves | Entered Zhirov 22726 | -5/Zhirov | Discovered new exit (range 3) 22745 | -5/Zhirov | Met Zhirov 22768 | -5/Zhirov | Found Alien Artifact 22768 | -5/Zhirov | Identified Integrated Reactor 22768 | -5/Zhirov | Installed Integrated Reactor, increased core energy generation (+10) 22942 | -5/Zhirov | Found Alien Artifact 22964 | -5/Zhirov | Zhirov requested help retrieving the SGEMP Prototype 22984 | -5/Zhirov | Entered Proximity Caves 23140 | -4/Proximity Caves | Lost 5 parts (3n2w) 23275 | -4/Proximity Caves | Learned Research garrison access intel 23281 | -4/Proximity Caves | Spotted B-86 Titan 23445 | -4/Proximity Caves | Build established: Hacker-Gunner 23584 | -4/Proximity Caves | Discovered exit to Factory (range 13) 23592 | -4/Proximity Caves | Entered Factory 23592 | -4/Factory | Evolved 2 slots: Power x1, Utility x1 23594 | -4/Factory | Loaded intel: 302 machine locations 23607 | -4/Factory | Identified exit to Upper Caves 23635 | -4/Factory | Identified exit to Research 23653 | -4/Factory | Found Gamma Bomb Array 23854 | -4/Factory | Found Exp. Targeting Computer 24138 | -4/Factory | Crushed by falling debris 24167 | -4/Factory | Garrison activated, responded to threat 24196 | -4/Factory | Identified Transdimensional Reconstructor 24196 | -4/Factory | Warped through subspace 24225 | -4/Factory | Lost 10 parts (1p3n2u4w) 24499 | -4/Factory | Garrison activated, responded to threat 24506 | -4/Factory | Learned location of 2 exits from Factory 24536 | -4/Factory | Repaired Hvy. Gauss Cannon? 24559 | -4/Factory | Destroyed 7 combat bots 24567 | -4/Factory | Lost 5 parts (1p1n1u2w) 24571 | -4/Factory | Learned Research scanalyzer intel 24624 | -4/Factory | Learned Testing emergency access door positions 24648 | -4/Factory | Spotted B-86 Titan 24661 | -4/Factory | Central database locked down 24702 | -4/Factory | Learned Quarantine emergency access door positions 24712 | -4/Factory | Repaired Weapon Mount 24723 | -4/Factory | Learned 4 Research zone layouts 24756 | -4/Factory | Learned 4 Testing zone layouts 24801 | -4/Factory | Learned Testing trap positions 24832 | -4/Factory | Intercept squad dispatched 24864 | -4/Factory | Spotted Tracker 24864 | -4/Factory | Spotted Tracker 24866 | -4/Factory | Manually triggered Chute Trap 24866 | -4/Factory | Sucked down chute 24866 | -4/Factory | Entered Waste 24871 | -4/Waste | 1 allies followed down the chute 24881 | -4/Waste | EMP discharged 24881 | -4/Waste | Spotted C-40 Crusher 24887 | -4/Waste | Spotted C-40 Crusher 24894 | -4/Waste | Discovered new exit (range 11) 24895 | -4/Waste | Spotted C-40 Crusher 24903 | -4/Waste | Entered Factory 24905 | -4/Factory | Loaded intel: 290 machine locations 25014 | -4/Factory | Spotted B-86 Titan 25072 | -4/Factory | Unchained authorized (GL-D0S) 25120 | -4/Factory | Intercept squad dispatched 25124 | -4/Factory | Spotted Tracker 25157 | -4/Factory | Spotted Combat Programmer 25188 | -4/Factory | System corruption reached 10% 25198 | -4/Factory | Core integrity fell below 50% 25208 | -4/Factory | Entered Upper Caves 25209 | -4/Upper Caves | Identified exit to Upper Caves 25237 | -4/Upper Caves | Lost 4 parts (1n1u2w) 25282 | -4/Upper Caves | Attracted the attention of an 0b10 checkpoint 25315 | -4/Upper Caves | Encountered a Warlord checkpoint 25437 | -4/Upper Caves | Learned 8 Research zone layouts 25498 | -4/Upper Caves | Build established: Gunner 25600 | -4/Upper Caves | Entered another Upper Caves area 25601 | -4/Upper Caves | Encountered a Warlord checkpoint 25622 | -4/Upper Caves | Discovered exit to Research (range 5) 25638 | -4/Upper Caves | Learned Research interactive machine intel 25807 | -4/Upper Caves | Attacked by a delusional Derelict stockpiling parts 25909 | -4/Upper Caves | Spotted B-86 Titan 25946 | -4/Upper Caves | Attracted the attention of an 0b10 checkpoint 26098 | -4/Upper Caves | Discovered new exit (range 12) 26149 | -4/Upper Caves | Entered Warlord 26172 | -4/Warlord | System corruption cleaned by Quarantine Array 26256 | -4/Warlord | Met Warlord 26276 | -4/Warlord | Received a Watcher feed algorithm from an ecstatic Tinkerer 26280 | -4/Warlord | Opened Warlord's prototype stash 26281 | -4/Warlord | Warlord's base attacked by MAIN.C 26292 | -4/Warlord | Found Prototype Hackware 26296 | -4/Warlord | Found Exp. Phase Shifter 26299 | -4/Warlord | Found Vortex Chain Reactor 26301 | -4/Warlord | Found Exp. Focal Shield 26408 | -4/Warlord | Found Prototype Energy Cannon 26408 | -4/Warlord | Identified Vortex Cannon 26410 | -4/Warlord | Found Vortex Cannon 26552 | -4/Warlord | Found Corrupted Prototype Ballistic Cannon 26621 | -4/Warlord | Warlord forces counterattacked 26689 | -4/Warlord | Spotted B-90 Cyclops 26718 | -4/Warlord | Spotted Executioner 26733 | -4/Warlord | Destroyed Executioner 26768 | -4/Warlord | Destroyed 8 combat bots 26770 | -4/Warlord | Found Prototype Processor 26770 | -4/Warlord | Identified Exp. Core Analyzer 26775 | -4/Warlord | Lost 16 allies 26779 | -4/Warlord | Found Exp. Core Analyzer 26781 | -4/Warlord | Spotted Executioner 26781 | -4/Warlord | Spotted Striker 26781 | -4/Warlord | Spotted Executioner 26781 | -4/Warlord | Spotted Striker 26782 | -4/Warlord | P-80 Master assimilated allied OM-X00(m) 26785 | -4/Warlord | Destroyed Executioner 26793 | -4/Warlord | Destroyed Striker 26833 | -4/Warlord | Lost 10 allies 26946 | -4/Warlord | Spotted Striker 26956 | -4/Warlord | Warlord base infiltrated, sounded retreat 26997 | -4/Warlord | Found Prototype Ballistic Cannon 26997 | -4/Warlord | Identified Hvy. Autocannon 27001 | -4/Warlord | Lost 6 allies 27085 | -4/Warlord | Build established: Scavenger-Gunner 27105 | -4/Warlord | Spotted B-90 Cyclops 27120 | -4/Warlord | Spotted Striker 27128 | -4/Warlord | Destroyed Striker 27143 | -4/Warlord | Spotted Executioner 27145 | -4/Warlord | Destroyed Executioner 27169 | -4/Warlord | Destroyed 10 combat bots 27177 | -4/Warlord | Lost 9 allies 27181 | -4/Warlord | Spotted Striker 27213 | -4/Warlord | Discovered new exit (range 15) 27219 | -4/Warlord | Lost 6 allies 27296 | -4/Warlord | Entered Proximity Caves 27462 | -3/Proximity Caves | Discovered exit to Research (range 10) 27564 | -3/Proximity Caves | Entered Research 27564 | -3/Research | Evolved 2 slots: Propulsion x1, Utility x1 27565 | -3/Research | Identified exit to Armory 27565 | -3/Research | Identified exit to Testing 27566 | -3/Research | Identified exit to Research 27568 | -3/Research | Loaded intel: 95 machine locations 27569 | -3/Research | Loaded intel: 44 interactive machine locations 27570 | -3/Research | Loaded intel: 6 scanalyzer locations 27571 | -3/Research | Loaded intel: 4 garrison access locations 27752 | -3/Research | Intercept squad dispatched 27764 | -3/Research | Revision forces began assault on 0b10 27780 | -3/Research | Spotted Tracker 27789 | -3/Research | Spotted Combat Programmer 27814 | -3/Research | Destroyed Combat Programmer 27821 | -3/Research | Destroyed Tracker 27868 | -3/Research | Found Exp. Targeting Computer 27870 | -3/Research | Lost 4 parts (1n3w) 27915 | -3/Research | Met up with Revision 17++ 28015 | -3/Research | Intercept squad dispatched 28150 | -3/Research | Discovered exit to Research (range 16) 28204 | -3/Research | Intercept squad dispatched 28264 | -3/Research | Research terminal network offline 28288 | -3/Research | Identified System Mapper 28288 | -3/Research | Central database locked down 28309 | -3/Research | Repaired Cmb. Gravmag System+? 28383 | -3/Research | Repaired Cmb. Gravmag System+ 28408 | -3/Research | Spotted B-86 Titan 28445 | -3/Research | Repaired Hyp. Mass Driver+? 28481 | -3/Research | Spotted Executioner 28484 | -3/Research | Spotted Striker 28494 | -3/Research | Intercept squad dispatched 28539 | -3/Research | Lost 5 allies 28694 | -3/Research | Found Gamma Bomb Array 28696 | -3/Research | Spotted Striker 28817 | -3/Research | Intercept squad dispatched 28972 | -3/Research | Found Exp. Core Analyzer 29128 | -3/Research | Spotted Striker 29143 | -3/Research | Destroyed Striker 29167 | -3/Research | Lost 4 parts (1u3w) 29203 | -3/Research | Intercept squad dispatched 29226 | -3/Research | Spotted Striker 29228 | -3/Research | Spotted Striker 29239 | -3/Research | Spotted Tracker 29240 | -3/Research | Spotted Tracker 29250 | -3/Research | Destroyed Tracker 29262 | -3/Research | Destroyed Tracker 29270 | -3/Research | Spotted Executioner 29271 | -3/Research | Spotted Combat Programmer 29271 | -3/Research | Spotted Striker 29273 | -3/Research | Spotted Combat Programmer 29285 | -3/Research | System corruption reached 10% 29297 | -3/Research | Core integrity fell below 50% 29297 | -3/Research | Spotted Striker 29317 | -3/Research | Core integrity fell below 20% 29347 | -3/Research | Lost 30 parts (2p15n9u4w) 29375 | -3/Research | Lost 3 allies 29382 | -3/Research | Entered Armory 29384 | -3/Armory | Loaded intel: 96 machine locations 29452 | -3/Armory | Spotted B-86 Titan 29632 | -3/Armory | Search patrols dispatched 29632 | -3/Armory | Destroyed by P-80 Master with Gamma Rifle Last Messages --------------- 29594_ System corrupted: Heat flow error (+106). 29597_ Slug penetrates Wall. 29607_ Acquired Antigrav System+. 29608_ Imp. Antigrav System+ destroyed. 29611_ 09FS=9ENSOMBW1>4|, OZUZSGKSTIDY 29615_ Dropped Antigrav System+. 29616_ Acquired Lgt. Quantum Reactor. 29623_ System corrupted: Hvy. Phase Cannon failed to cycle. 29623_ Destroyed Imp. Antigrav System. 29623_ P-80 Master knocked back. 29626_ Destroyed Adv. Heat Sink. 29626_ P-80 Master knocked back. 29627_ System corrupted: Adv. Cloaking Device rejected. 29630_ Acquired Adv. Cloaking Device. 29630_ Slug penetrates Wall. 29632_ ALERT: Heightened foreign activity detected, dispatching search patrol. [Achievement: Suspicious] Map ----- +----------------------------------------------------+ | ????????????????????????""""?????????????# ?????? | | ?????????????????????????????????????????# ?????? | | ?????????????????????????????????????????# ###### | | ?????????????????????????????????????????# # | | ?????????????????????????????????????????# " | | ?????????????????????????????????????????# """ " | | ?????????????????????????????????????????# """ " | | ?????????????????????????????"""T"""?????# """ | | ?????????????????????????????"""?"""?????# F" | | ?????????????????????????????????????????# """ | | ????????????????"""??????????????????????# "" # | | ????????????????"Y"??????????????????????# | | ???????????????????????"""?"""?"""?"""???# | | ???????????????????????"""?"""?"""?"""???# | | ???????????????"""?????"""?"""?"""?"""???# | | ???????????????"""??????????????????????## | | ???????????????"""?? ####+############### | | ??????????????????? != | | ??????????????????? != | | ???????????????????????# = | | ???????????????????????# ""Y"" ############# | | ???????????????????????# """"" #?????# """ | | ???????????????????????# ####### "T" ! | | ???????????????????????# / | | ???????????????????????#+####+####### # | | ??????????"""?"""??????# @ h # ##+#### | | ??????????"""?"""??????# ** = p #??? | | ??????????"""?"""??????# ** ** %###########??? | | ???????????????????????# ** ** #????????????? | | ???????????????????????# #????????????? | | ???????????????????????##############????????????? | | ?????????????????????????????????????????????????? | | ?????????????????????????????????????????????????? | | ?????????????????????????????????????????????????? | | ?????????????????????????????????????????????????? | | ?????????????????????????????????????????????????? | | ?????????????????????????????????????????????????? | | ?????????????????????????????????????????????????? | | ?????????????????????????????????????????????????? | | ?????????????????????????????????????????????????? | | ?????????????????????????????????????????????????? | | | | | | | | | | | | | | | | | | | +----------------------------------------------------+ Best States ------------- Heat Dissipation 77 Coolant Potential 65 Energy Generation 65 Energy Capacity 800 Matter Stores 600 Matter Capacity 600 Sight Range 20 Robot Scan Range 15 Terrain Scan Range 16 Terrain Scan Density 410 Jamming Range 16 Cloak Strength 6 Power Amplification 20 Corruption Containment 8 Armor Coverage 375 Resistance: KI 30 Core Shielding 40 Propulsion Shielding 66 Weapon Shielding 66 Weapon Cycling 25 Evasion (%) 62 Targeting Accuracy 48 Core Analysis 8 Armor Integrity Analysis 40 Recoil Reduction 4 Matter Filtering 30 Kinecelleration 30 Salvage Targeting 3 Offensive Hacking 44 Defensive Hacking 12 Item Schematics ----------------- Enh. Nuclear Core | -8/Materials | Scanalyzed Hacking Suite | -8/Materials | Scanalyzed Reactive Plating | -8/Materials | Scanalyzed Adv. Targeting Computer | -8/Materials | Scanalyzed Lgt. Cannon | -8/Materials | Scanalyzed Rocket Launcher | -8/Materials | Scanalyzed Field Laser | -8/Materials | Extracted Com. Matter Pod | -8/Materials | Extracted Grenade Launcher | -8/Materials | Extracted Lgt. EM Pulse Cannon | -8/Materials | Extracted Hvy. Flail | -8/Materials | Extracted Hcp. Matter Pod | -8/Materials | Extracted Imp. Light Cannon | -8/Materials | Extracted Gravmag System | -7/Factory | Scanalyzed Mni. Assault Cannon | -7/Factory | Scanalyzed Core Analyzer | -7/Factory | Scanalyzed Gravmag Array | -7/Factory | Hacked Combat Drone Bay | -7/Data Miner | Free Lgt. Regenerative Plating | -7/Data Miner | Free Cld. Aerolev Unit | -7/Data Miner | Free Gravity Neutralizer | -7/Data Miner | Free Imp. Heavy Machine Gun | -7/Data Miner | Free Gyrokinetic Inverter | -7/Data Miner | Free Adv. Shield Generator | -7/Data Miner | Free Variable Charge Gun | -7/Data Miner | Free Assault Cannon | -6/Factory | Scanalyzed Thermal Shield | -6/Factory | Extracted Matter Compressor | -6/Factory | Extracted Weapon Mount | -6/Hub_04(d) | Hacked Cmb. Gravmag System | -5/Factory | Scanalyzed Imp. Medium Treads | -5/Factory | Extracted Power Maul | -5/Factory | Extracted Hvy. Mace | -5/Factory | Extracted Assault Drone Bay | -5/Zhirov | Free Exp. Heat Sink | -5/Zhirov | Free Exp. Optical Array | -5/Zhirov | Free Imp. Arc Thrower | -5/Zhirov | Free Hyp. Mass Driver | -4/Factory | Scanalyzed Reaction Control System | -4/Factory | Extracted Imp. Thermal Shield | -4/Factory | Extracted Imp. Remote Datajack | -4/Factory | Extracted Imp. Shock Absorption System | -4/Factory | Extracted Linear Accelerator | -3/Research | Scanalyzed Vortex Chain Reactor | -3/Research | Scanalyzed Adv. Weapon Cycler | -3/Research | Scanalyzed Exp. Focal Shield | -3/Research | Scanalyzed ECM Suite | -3/Research | Extracted Lrg. Storage Unit | -3/Research | Extracted Lrn. Tractor Beam | -3/Research | Extracted Recalibrator | -3/Research | Extracted Hvy. Disruptor Cannon | -3/Research | Extracted Graviton Reactor | -3/Research | Scanalyzed Robot Schematics ------------------ S-27 Virus | -7/Data Miner | Free H-55 Commando | -7/Data Miner | Free E-15 Imp | -7/Data Miner | Free P-60 Hacker | -6/Hub_04(d) | Hacked Y-64 Sentinel | -5/Factory | Hacked Fabricated ------------ Imp. Light Cannon | x2 | -7/Factory Gravmag Array | x1 | -7/Factory Repaired ---------- Lgt. Treads | 39% | -10/Materials Lgt. Treads | 50% | -10/Materials Weapon Shielding | 72% | -10/Materials Ion Engine | 71% | -10/Materials Lgt. Cannon | 60% | -8/Materials Lgt. Cannon | 65% | -8/Materials Enh. Nuclear Core | 10% | -8/Materials Gravmag System | 11% | -7/Factory | Broken Smartbomb Launcher | 32% | -6/Factory Gravmag System | 64% | -6/Factory Hardcell Cannon | 34% | -6/Factory Gravmag Array | 50% | -6/Factory Imp. Gravmag System | 8% | -6/Extension Hardcell Cannon | 50% | -5/Factory Hardcell Cannon | 50% | -5/Factory Rnf. Fission Core | 57% | -5/Factory Imp. Hover Unit | 22% | -5/Factory Adv. Assault Cannon | 63% | -5/Factory Antimatter Cannon | 40% | -5/Factory Enh. Gauss Cannon | 63% | -5/Factory Hvy. Gauss Cannon | 12% | -4/Factory Weapon Mount | 38% | -4/Factory Cmb. Gravmag System | 16% | -3/Research Cmb. Gravmag System | 14% | -3/Research Hyp. Mass Driver | 16% | -3/Research Studied --------- Lgt. Cannon | -8/Materials | Hacked Imp. Light Cannon | -7/Factory | Hacked Gravmag System | -7/Factory | Hacked Adv. Assault Cannon | -7/Factory | Hacked Gravmag Array | -6/Factory | Hacked Assault Cannon | -6/Factory | Hacked Imp. Gravmag System | -6/Factory | Hacked Enh. Gauss Cannon | -5/Factory | Hacked Hardcell Cannon | -5/Factory | Hacked Antigrav System | -4/Factory | Hacked Magnetic Acceleration Cannon | -4/Factory | Hacked Cmb. Gravmag System | -4/Factory | Hacked Lgt. Antimatter Reactor | -4/Factory | Hacked Linear Accelerator | -3/Research | Hacked Imp. Antigrav System | -3/Research | Hacked Hyp. Mass Driver | -3/Research | Hacked Alien Tech Used ----------------- Integrated Reactor Transdimensional Reconstructor Achievements -------------- Betrayal Most Foul Coming In Hot Deadly Precision Fancy Inventory Fishing Tech Fitting Room Heavy Suspicion Hydra Incoming! Jackpot My Bad Plot Armor Protector Resistances Are Futile Spot Them First Suspicious That Tickles Thread The Needle Around The Corner Throw Away The Key Challenges ------------ None Game ------ Seed RecoilSpectralDriveblaster Manual? 0 Play Time 08:18:39 Cumulative 616.7 hours Start 2025.11.08 @ 17:39:22 End 2025.11.12 @ 21:46:15 Sessions 8 Manual Loads 0 Difficulty Rogue Special Mode None Game No. 309 Rogue 309 Adventurer 0 Explorer 0 Win Type - Total 7 Types 3/0/2/1/0/0/0/0/0/1 Lore% 87 Gallery% 78 Achievement% 45 Wizard Run 0 Options --------- Layout 2 ASCII 0 Keyboard 1 Movement Vi Keybinds 0 Fullscreen 1 Font 16/SmallcapsGlow Map View 55x47 Zoom Use 0% Tactical HUD 1 Map Filters NONE Filters NONE Steam 0 RUN: 693f42c6-0625-41dd-8d84-8c20da8c25c5